Workbook

Sheet はじめに
A1: 中山間地域等直接支払交付金参考様式集（第6期対策）
A2: ★基本情報入力欄 はじめに太枠内の情報を入力してください。
B3: 都道府県名 | D3: 島根県 | E3: ← 「都道府県」まで記入してください。
B4: 市町村名 | D4: 出雲市 | E4: ← 「市町村」まで記入してください。
B5: 協定名 | D5: あいうえお協定
B6: 代表者名 | D6: 中山間 太郎
B7: 協定所在地 | D7: ○○県△△市○町
A9: ★記入の手順と注意事項
B10: ・「★提出書類と各シートの説明」のシート名をクリックすることで、入力する様式に移動します。または、画面下の様式名を選択すると、入力する様式を切り替えることができます。左下の◀▶をクリックすることで、隠れている様式を表示させることができます。
B11: （※まず初めに、「別紙２①」の「農用地の内訳等及びネットワーク化活動計画」を入力すると作成がスムーズです。）
B13: ・すべての集落協定の方が入力する必要のあるセルには、この色（オレンジ色）が塗ってあります。
B14: ・該当する場合に、集落協定の方が入力する必要のあるセルには、この色（薄いオレンジ色）が塗ってあります。
B15: ・この色（黄緑色）が塗ってあるセルは自動入力されます。自動入力されたものが間違っている場合は、正しく修正してください。（入力されている数式を消去すると、自由に入力できます。）
B16: ・市町村に提出する前に、自動集計された箇所も含め、誤りがないかご確認ください。
B17: ・行を追加する際は、一番左にある行番号をクリックして行全体をコピーし、表の最下部の太線より上の位置で行番号を右クリックし「コピーしたセルの挿入」を選択してください。
B18: ・画面上部に右のような表示が出た場合は「コンテンツの有効化」を押してください。
A20: ★提出書類と各シートの説明
A21: １．事業計画の申請時に提出するもの
B22: 様式番号 | D22: 様式名 | F22: 提出の必要性 | G22: シート名
B23: 参考様式第４号 | D23: 多面的機能発揮促進事業に関する計画の認定［変更の認定］の申請について | F23: 必須 （集落・個別協定） | G23: 参４_申請
F24: 必須 （集落・個別協定） | G24: 参４_申請_事業計画
C25: 別紙様式１ （共通部分） | D25: 農業の有する多面的機能の発揮の促進に関する活動計画書 （中山間地域等直接支払に関する集落協定） | F25: 必須 （集落・個別協定） | G25: 別紙１①
C26: 別添１ | D26: 実施区域位置図 | F26: 必須 （集落・個別協定） | G26: 別紙１②
C27: 別添２ | D27: 構成員一覧 | F27: 必須 （集落・個別協定） | G27: 別紙１③
C28: 別紙様式６ | D28: 個別協定 経営規模及び農業所得調書 | F28: 必須 （個別協定） | G28: 別紙６
C29: 別紙様式７ | D29: 協定農用地の概要 | F29: 必要に応じて （集落・個別協定） | G29: 別紙７
C30: 別添 | D30: 農作業受委託契約書（様式例） | F30: 必要に応じて （集落・個別協定） | G30: 別紙７（別添）
C31: 別紙様式９ | D31: 環境負荷低減のチェックシート（個別協定向け） | F31: 必須 （個別協定） | G31: 別紙９

Sheet プルダウンリスト (hidden)
A1: 地目、傾斜
A2: 田 | B2: 畑 | C2: 草地 | D2: 採草放牧地
A3: 急傾斜 | B3: 急傾斜 | C3: 急傾斜 | D3: 急傾斜
A4: 緩傾斜 | B4: 緩傾斜 | C4: 緩傾斜 | D4: 緩傾斜
A5: 小区画・不整形 | B5: 高齢化・耕作放棄率 | C5: 高齢化・耕作放棄率 | D5: 特認基準（急傾斜） | E5: ←各地目、単価設定を修正（特認基準→特認基準（急傾斜））
A6: 高齢化・耕作放棄率 | B6: 特認基準（急傾斜） | C6: 草地比率の高い草地 | D6: 特認基準（緩傾斜） | E6: ←単価設定を追加（特認基準（緩傾斜））
A7: 特認基準（急傾斜） | B7: 特認基準（緩傾斜） | C7: 特認基準（急傾斜） | D7: 交付対象外（田採草放牧地混在地）
A8: 特認基準（緩傾斜） | B8: 交付対象外（田畑混在地） | C8: 特認基準（緩傾斜） | D8: 交付対象外（田採草放牧地混在地以外）
A9: 交付対象外 | B9: 交付対象外（田畑混在地以外） | C9: 交付対象外（田草地混在地） | D9: 協定に含めない管理すべき農用地
A10: 協定に含めない管理すべき農用地 | B10: 協定に含めない管理すべき農用地 | C10: 交付対象外（田草地混在地以外）
C11: 協定に含めない管理すべき農用地
A15: 単価一覧
A16: ネットワーク化活動計画 | B16: 地目 | C16: 傾斜 | D16: ネットワーク化活動計画＋地目＋傾斜 | E16: 交付単価
A17: 〇 | B17: 田 | C17: 急傾斜 | D17: =A17&B17&C17 -> 〇田急傾斜 | E17: 21000
A18: 〇 | B18: 田 | C18: 緩傾斜 | D18: =A18&B18&C18 -> 〇田緩傾斜 | E18: 8000
A19: 〇 | B19: 田 | C19: 小区画・不整形 | D19: =A19&B19&C19 -> 〇田小区画・不整形 | E19: 8000
A20: 〇 | B20: 田 | C20: 高齢化・耕作放棄率 | D20: =A20&B20&C20 -> 〇田高齢化・耕作放棄率 | E20: 8000
F21: ←単価設定を削除
A22: 〇 | B22: 田 | C22: 交付対象外 | D22: =A22&B22&C22 -> 〇田交付対象外 | E22: 0
A23: 〇 | B23: 田 | C23: 協定に含めない管理すべき農用地 | D23: 〇田協定に含めない管理すべき農用地 | E23: 0
A24: 〇 | B24: 田 | C24: 特認基準（急傾斜） | D24: 〇田特認基準（急傾斜） | E24: 21000 | F24: ←単価設定を追加
A25: 〇 | B25: 田 | C25: 特認基準（緩傾斜） | D25: 〇田特認基準（緩傾斜） | E25: 8000 | F25: ←単価設定を追加
A26: 〇 | B26: 畑 | C26: 急傾斜 | D26: 〇畑急傾斜 | E26: 11500
A27: 〇 | B27: 畑 | C27: 緩傾斜 | D27: 〇畑緩傾斜 | E27: 3500
A28: 〇 | B28: 畑 | C28: 高齢化・耕作放棄率 | D28: 〇畑高齢化・耕作放棄率 | E28: 3500
F29: ←単価設定を削除
A30: 〇 | B30: 畑 | C30: 交付対象外（田畑混在地） | D30: =A30&B30&C30 -> 〇畑交付対象外（田畑混在地） | E30: 0
A31: 〇 | B31: 畑 | C31: 交付対象外（田畑混在地以外） | D31: 〇畑交付対象外（田畑混在地以外） | E31: 0
A32: 〇 | B32: 畑 | C32: 協定に含めない管理すべき農用地 | D32: 〇畑協定に含めない管理すべき農用地 | E32: 0
A33: 〇 | B33: 畑 | C33: 特認基準（急傾斜） | D33: 〇畑特認基準（急傾斜） | E33: 11500 | F33: ←単価設定を追加
A34: 〇 | B34: 畑 | C34: 特認基準（緩傾斜） | D34: 〇畑特認基準（緩傾斜） | E34: 3500 | F34: ←単価設定を追加
A35: 〇 | B35: 草地 | C35: 急傾斜 | D35: 〇草地急傾斜 | E35: 10500
A36: 〇 | B36: 草地 | C36: 緩傾斜 | D36: 〇草地緩傾斜 | E36: 3000
A37: 〇 | B37: 草地 | C37: 高齢化・耕作放棄率 | D37: 〇草地高齢化・耕作放棄率 | E37: 3000
A38: 〇 | B38: 草地 | C38: 草地比率の高い草地 | D38: 〇草地草地比率の高い草地 | E38: 1500
F39: ←単価設定を削除
A40: 〇 | B40: 草地 | C40: 交付対象外（田草地混在地） | D40: =A40&B40&C40 -> 〇草地交付対象外（田草地混在地） | E40: 0
A41: 〇 | B41: 草地 | C41: 交付対象外（田草地混在地以外） | D41: 〇草地交付対象外（田草地混在地以外） | E41: 0
A42: 〇 | B42: 草地 | C42: 協定に含めない管理すべき農用地 | D42: 〇草地協定に含めない管理すべき農用地 | E42: 0
A43: 〇 | B43: 草地 | C43: 特認基準（急傾斜） | D43: 〇草地特認基準（急傾斜） | E43: 10500 | F43: ←単価設定を追加
A44: 〇 | B44: 草地 | C44: 特認基準（緩傾斜） | D44: 〇草地特認基準（緩傾斜） | E44: 3000 | F44: ←単価設定を追加
A45: 〇 | B45: 採草放牧地 | C45: 急傾斜 | D45: 〇採草放牧地急傾斜 | E45: 1000
A46: 〇 | B46: 採草放牧地 | C46: 緩傾斜 | D46: 〇採草放牧地緩傾斜 | E46: 300
F47: ←単価設定を削除
A48: 〇 | B48: 採草放牧地 | C48: 交付対象外（田採草放牧地混在地） | D48: =A48&B48&C48 -> 〇採草放牧地交付対象外（田採草放牧地混在地） | E48: 0
A49: 〇 | B49: 採草放牧地 | C49: 交付対象外（田採草放牧地混在地以外） | D49: 〇採草放牧地交付対象外（田採草放牧地混在地以外） | E49: 0
A50: 〇 | B50: 採草放牧地 | C50: 協定に含めない管理すべき農用地 | D50: 〇採草放牧地協定に含めない管理すべき農用地 | E50: 0
A51: 〇 | B51: 採草放牧地 | C51: 特認基準（急傾斜） | D51: 〇採草放牧地特認基準（急傾斜） | E51: 1000 | F51: ←単価設定を追加
A52: 〇 | B52: 採草放牧地 | C52: 特認基準（緩傾斜） | D52: 〇採草放牧地特認基準（緩傾斜） | E52: 300 | F52: ←単価設定を追加
B53: 田 | C53: 急傾斜 | D53: 田急傾斜 | E53: =E17*0.8 -> 16800
B54: 田 | C54: 緩傾斜 | D54: 田緩傾斜 | E54: =E18*0.8 -> 6400
B55: 田 | C55: 小区画・不整形 | D55: 田小区画・不整形 | E55: =E19*0.8 -> 6400
B56: 田 | C56: 高齢化・耕作放棄率 | D56: 田高齢化・耕作放棄率 | E56: =E20*0.8 -> 6400
F57: ←単価設定を削除
B58: 田 | C58: 交付対象外 | D58: =A58&B58&C58 -> 田交付対象外 | E58: =E22*0.8 -> 0
B59: 田 | C59: 協定に含めない管理すべき農用地 | D59: 田協定に含めない管理すべき農用地 | E59: 0
B60: 田 | C60: 特認基準（急傾斜） | D60: 田特認基準（急傾斜） | E60: =E24*0.8 -> 16800
B61: 田 | C61: 特認基準（緩傾斜） | D61: 田特認基準（緩傾斜） | E61: =E25*0.8 -> 6400
B62: 畑 | C62: 急傾斜 | D62: 畑急傾斜 | E62: =E26*0.8 -> 9200 | F62: ←単価設定を追加
B63: 畑 | C63: 緩傾斜 | D63: 畑緩傾斜 | E63: =E27*0.8 -> 2800 | F63: ←単価設定を追加
B64: 畑 | C64: 高齢化・耕作放棄率 | D64: 畑高齢化・耕作放棄率 | E64: =E28*0.8 -> 2800
F65: ←単価設定を削除
B66: 畑 | C66: 交付対象外（田畑混在地） | D66: =A66&B66&C66 -> 畑交付対象外（田畑混在地） | E66: =E30*0.8 -> 0
B67: 畑 | C67: 交付対象外（田畑混在地以外） | D67: 畑交付対象外（田畑混在地以外） | E67: =E31*0.8 -> 0
B68: 畑 | C68: 特認基準（急傾斜） | D68: 畑特認基準（急傾斜） | E68: =E33*0.8 -> 9200 | F68: ←単価設定を追加
B69: 畑 | C69: 特認基準（緩傾斜） | D69: 畑特認基準（緩傾斜） | E69: =E34*0.8 -> 2800 | F69: ←単価設定を追加
B70: 畑 | C70: 協定に含めない管理すべき農用地 | D70: 畑協定に含めない管理すべき農用地 | E70: =E32*0.8 -> 0
B71: 草地 | C71: 急傾斜 | D71: 草地急傾斜 | E71: =E35*0.8 -> 8400
B72: 草地 | C72: 緩傾斜 | D72: 草地緩傾斜 | E72: 2400
B73: 草地 | C73: 高齢化・耕作放棄率 | D73: 草地高齢化・耕作放棄率 | E73: 2400
B74: 草地 | C74: 草地比率の高い草地 | D74: 草地草地比率の高い草地 | E74: 1200
E75: 0 | F75: ←単価設定を削除
B76: 草地 | C76: 交付対象外（田草地混在地） | D76: =A76&B76&C76 -> 草地交付対象外（田草地混在地） | E76: 0
B77: 草地 | C77: 交付対象外（田草地混在地以外） | D77: 草地交付対象外（田草地混在地以外） | E77: 0
B78: 草地 | C78: 協定に含めない管理すべき農用地 | D78: 草地協定に含めない管理すべき農用地 | E78: 0
B79: 草地 | C79: 特認基準（急傾斜） | D79: 草地特認基準（急傾斜） | E79: =E35*0.8 -> 8400 | F79: ←単価設定を追加
B80: 草地 | C80: 特認基準（緩傾斜） | D80: 草地特認基準（緩傾斜） | E80: =E36*0.8 -> 2400 | F80: ←単価設定を追加
B81: 採草放牧地 | C81: 急傾斜 | D81: 採草放牧地急傾斜 | E81: =E45*0.8 -> 800
B82: 採草放牧地 | C82: 緩傾斜 | D82: 採草放牧地緩傾斜 | E82: =E46*0.8 -> 240
F83: ←単価設定を削除
B84: 採草放牧地 | C84: 交付対象外（田採草放牧地混在地） | D84: =A84&B84&C84 -> 採草放牧地交付対象外（田採草放牧地混在地） | E84: =E48*0.8 -> 0
B85: 採草放牧地 | C85: 交付対象外（田採草放牧地混在地以外） | D85: =A85&B85&C85 -> 採草放牧地交付対象外（田採草放牧地混在地以外） | E85: =E49*0.8 -> 0
B86: 採草放牧地 | C86: 協定に含めない管理すべき農用地 | D86: =A86&B86&C86 -> 採草放牧地協定に含めない管理すべき農用地 | E86: =E50*0.8 -> 0
B87: 採草放牧地 | C87: 特認基準（急傾斜） | D87: =A87&B87&C87 -> 採草放牧地特認基準（急傾斜） | E87: =E45*0.8 -> 800 | F87: ←単価設定を追加
B88: 採草放牧地 | C88: 特認基準（緩傾斜） | D88: =A88&B88&C88 -> 採草放牧地特認基準（緩傾斜） | E88: =E46*0.8 -> 240 | F88: ←単価設定を追加
A92: 農用地の現況及び活動内容
A93: 耕作地
A94: 維持管理農用地
A95: 荒廃農地
A96: 被災地
A97: 土地改良通年施行
A98: その他（具体的活動内容欄に記入）

Sheet 参４_申請
A1: （参考様式第４号） | AD1: 〇
E3: 年 月 日
A4: 市町村長 | C4: 殿
E5: =はじめに!D5&"" -> あいうえお協定
E6: =はじめに!D6&"" -> 中山間 太郎
A8: 多面的機能発揮促進事業に関する計画の認定［変更の認定］の申請について
A10: このことについて、農業の有する多面的機能の発揮の促進に関する法律（平成26年法律第78号）第７条第１項［８条第１項］の規定に基づき、下記関係書類を添えて認定を申請する。
A13: １ 事業計画
A15: ２ 農業の有する多面的機能の発揮の促進に関する活動計画書
B16: □ | C16: １号事業（多面的機能支払交付金）
B17: ☑ | C17: ２号事業（中山間地域等直接支払交付金）
B18: □ | C18: ３号事業（環境保全型農業直接支払交付金）
A20: ３ その他
B21: □ | C21: 都道府県の同意書の写し（都道府県営土地改良施設の管理）
B23: ※農山漁村の活性化のための定住等及び地域間交流の促進に関する法律（平成19年法律第48号）第５条第１項に規定する活性化計画が作成されている場合であって、その添付書類として、多面的機能発揮促進事業に関する計画の認定の申請（変更の認定の申請の場合も含む。）に必要な上記１から３までに掲げる書類が既に市町村長に提出されているときは、これらの書類の添付を省略することができる。
B25: □ | C25: ※に該当するため、書類の添付を省略する。
A27: ＜施行注意＞
A28: 変更の認定の申請の場合は、［ ］内の記載に置き換えるものとする。

Sheet 参４_申請_事業計画
A3: 多面的機能発揮促進事業に関する計画
G5: =参４_申請!E3 -> 年 月 日
G6: =はじめに!D5&"" -> あいうえお協定
A8: １ 多面的機能発揮促進事業の目標
A10: １．現況
A13: ２．目標
A16: ２ 多面的機能発揮促進事業の内容
A17: （１）多面的機能発揮促進事業の種類及び実施区域
A18: ① 種類（実施するものに○を付すこと。）
C19: １号事業（多面的機能支払交付金）
F20: 農業の有する多面的機能の発揮の促進に関する法律（平成26年法律第78号。以下「法」という。）第３条第３項第１号イに掲げる施設の維持その他の主として当該施設の機能の保持を図る活動（以下「イの活動」という。） （農地維持支払交付金）
F22: 法第３条第３項第１号ロに掲げる施設の改良その他の主として当該施設の機能の増進を図る活動（以下「ロの活動」という。） （資源向上支払交付金）
C24: 〇 | E24: ２号事業（中山間地域等直接支払交付金）
E25: ３号事業（環境保全型農業直接支払交付金）
E26: ４号事業（その他農業の有する多面的機能の発揮の促進に資する事業）
A28: ② 実施区域
C29: 別添の中山間地域等直接支払交付金に係る個別協定（以下、「個別協定」という。）「（別添１）実施区域位置図」のとおり。
A32: （２）活動の内容等
A33: ②２号事業
A34: １）農業生産活動の内容
C35: ・個別協定「（別紙様式６）経営規模及び農業所得調書」の「第１ 経営規模」に記載のとおり。
A38: ２）農業生産活動の継続的な実施を推進するための活動
C39: ・個別協定「（別紙様式６）第３ 農業生産活動等として取り組むべき事項」、「（別紙様式６）第４ 加算措置適用のために取り組むべき事項」及び「（別紙様式７）協定農用地の概要」に記載のとおり。
A45: ３ 多面的機能発揮促進事業の実施期間
C46: ・個別協定の認定日から４年経過後の最初の３月31日までの期間。
A48: ４ 農業者団体等の構成員に係る事項
C49: ・個別協定「（別紙様式７）協定農用地の概要」に記載のとおり。
A50: ＜施行注意＞
A51: 記入内容が集落協定もしくは個別協定と重複する場合は、「２（１）②実施区域」、「２（２）活動内容等」、「３ 多面的機能発揮促進事業の実施期間」及び「農業者団体等の構成員に係る事項」の記入を省略することも可能とする。

Sheet 別紙１①
R2: （別紙様式１）
B4: 農業の有する多面的機能の発揮の促進に関する活動計画書 （中山間地域等直接支払に係る集落協定）
D6: ふりがな
D7: 組織名 | G7: =はじめに!D5&"" -> あいうえお協定
D9: ふりがな
D10: 代表者氏名 | G10: =はじめに!D6&"" -> 中山間 太郎
D12: ふりがな
D13: 所在地 | G13: =はじめに!D7&"" -> ○○県△△市○町
D16: Ⅰ． | E16: 地区の概要（共通）
D18: ＜活動の計画＞
D19: =参４_申請!B16 -> □ | E19: Ⅱ． １号事業（多面的機能支払） | R19: 別紙
D20: =参４_申請!B17 -> ☑ | E20: Ⅲ． ２号事業（中山間地域等直接支払） | R20: 別紙1
D21: =参４_申請!B18 -> □ | E21: Ⅳ． ３号事業（環境保全型農業直接支払） | R21: 別紙
D22: □ | E22: Ⅴ． その他多面的機能の発揮の促進に資する事業に係る計画書 | R22: 別紙
D23: （注）該当する活動にチェックし、取り組む活動の別紙のみ添付すること
C25: ＜施行注意＞
C26: 提出の際に（ ）内は、多面的機能支払に係る活動計画書、中山間地域等直接支払に係る集落協定、環境保全型農業直接支払に係る営農活動計画書のうち該当する活動の計画書若しくは協定を記載すること。
A27: Ⅰ．地区の概要
B28: ※ 以下、（多面的機能支払、中山間地域等直接支払、環境保全型農業直接支払）をそれぞれ（多面支払、中山間直払、環境直払）と一部で表示
B29: １．活動期間
D30: 活動開始年度 (計画認定年度) | G30: 活動終了年度 | J30: 交付金の 交付年数 | L30: 計画変更 | O30: 計画変更
B31: 農地維持支払
D32: 令和 | F32: 年度 | G32: 令和 | I32: 年度 | L32: 令和 | N32: 年度 | O32: 令和 | Q32: 年度
B33: 資源向上支払（共同）
D34: 令和 | F34: 年度 | G34: 令和 | I34: 年度 | L34: 令和 | N34: 年度 | O34: 令和 | Q34: 年度
B35: 資源向上支払（長寿命化）
D36: 令和 | F36: 年度 | G36: 令和 | I36: 年度 | L36: 令和 | N36: 年度 | O36: 令和 | Q36: 年度
B37: 中山間地域等 直接支払
D38: 令和 | E38: 7 | F38: 年度 | G38: 令和 | H38: 11 | I38: 年度 | J38: =H38-E38+1 -> 5 | L38: 令和 | N38: 年度 | O38: 令和 | Q38: 年度
B39: 環境保全型農業直接支払
D40: 令和 | F40: 年度 | G40: 令和 | I40: 年度 | L40: 令和 | N40: 年度 | O40: 令和 | Q40: 年度
B41: ２．実施区域内の農用地、施設
B42: 協定農用地面積 又は認定農用地面積※１ | O42: 計 | R42: 解消する遊休農地面積 | S42: 年当たり 交付金額 上限
D43: 田 | G43: 畑 | J43: 草地 | L43: 採草放牧地
C44: 多面支払
D45: 0 | G45: 0 | J45: 0 | O45: =SUM(D45,G45,J45) -> 0 | R45: 0 | S45: 0
C46: 中山間 直払 | O46: =SUM(D46:N46) -> 0
D48: 傾斜 | G48: 傾斜 | J48: 傾斜 | L48: 傾斜
B49: 農地面積 | C49: 環境 直払※２ | D49: 0
D50: 0 | S50: 0
B51: ※１ 多面支払の認定農用地面積は、集落が管理する農用地面積を記載する。 ※２ 環境直払に取り組む場合は、Ⅳの４の交付金額の取組面積の合計及び年当たり交付金額上限の合計を 記載するものとする。
B52: 農業用施設 （多面支払） | G52: 水路 | J52: 農道 | L52: ため池
G54: 0 | J54: 0 | L54: 0
C55: うち、資源向上支払 （長寿命化）の対象施設
G56: 0 | J56: 0 | L56: 0
B57: ※ 延長は、小数点以下第１位まで記入する。
B58: ３．実施区域位置図
B59: 別添１「実施区域位置図」のとおり
B60: ４．組織構成員一覧
B61: 別添２「構成員一覧」のとおり ※ 多面支払のみに取り組む場合は、活動組織規約の別紙「構成員一覧」に代えることができる。
B62: ５．多面的機能支払と中山間地域等直接支払との重複面積
B63: 重複面積 （多面支払・中山間直払）
B64: =O44+O46-D64 -> 0
B67: ※多面支払の活動計画書及び中山間直払の集落協定に位置づけられている施設等については、多面支払 の活動組織により活動を実施し、また、多面支払の交付金を充てることとする。
B68: ＜施行注意＞
B69: 計画書の変更の際には、容易に比較対照できるよう変更部分を二段書きとし、変更前を（ ）書で上段に記載するものとする。

Sheet 別紙１②
B1: （別添１）
B2: 実施区域位置図 | H2: 組織名称：
B3: ='別紙１①'!D19 -> □ | C3: １号事業（多面支払） | D3: ='別紙１①'!D20 -> ☑ | E3: 2号事業（中山間直払） | F3: ='別紙１①'!D21 -> □ | G3: ３号事業（環境直払） | H3: =はじめに!D5&"" -> あいうえお協定

Sheet 別紙１③
A1: （別添２）
A2: 構成員一覧
H3: =参４_申請!E3 -> 年 月 日
A4: 役職名 | B4: 氏名 （代表者名、 団体名） | C4: 住所 | D4: 多面的機能支払 | G4: 中山間地域等直接支払 | J4: 環境保全型農業直接支払
E5: 分類 記号 | F5: 備考 活動支援班員 | H5: 分類 記号 | I5: 年齢 分類 記号 | K5: 他の市町村で環境保全型農業直接支払を実施している場合は、その市町村名を全て記載 | L5: みどり認定
L6: 認定済 | M6: 申請中又は申請予定 | N6: 申請予定無し
AJ7: 〇
AJ8: 〇
AJ9: 〇
AJ10: 〇
AJ11: 〇
AJ12: 〇
AJ13: 〇
AJ14: 〇
AJ15: 〇
AJ16: 〇
AJ17: 〇
AJ18: 〇
AJ19: 〇
AJ20: 〇
AJ21: 〇
AJ22: 〇
AJ23: 〇
AJ24: 〇
AJ25: 〇
AJ26: 〇
AJ27: 〇
AJ28: 〇
C33: 行を追加する場合はこれより上の行をコピーして「コピーしたセルの挿入」をしてください。
A39: 多面的機能支払分類番号リスト | C39: 中山間地域等直接支払分類記号リスト | H39: 年齢分類記号リスト
A57: 注１：「多面的機能支払」「中山間地域等直接支払」「環境保全型農業直接支払」の欄は、各支払に取り組む者に○印を記入。
A58: 注２：多面的機能支払に取り組む場合は、「分類番号」を分類番号リストの１～13から選択。
A59: 注３：「農業者」とは、協定に位置付けられている農用地において農業生産活動等（多面的機能支払においては、耕作又は養畜）を実施する農業者又は団体である。
A60: 注４：中山間地域等直接支払の場合には、「分類記号」を分類記号リストA～Mから選択するとともに、「年齢分類記号」を年齢分類記号リストのア～コから選択。また、市町村の中山間地域等直接支払担当部局と税務部局との間で調整が調っている場合には、例えば、「農業所得の確認に関する承諾」欄や「生年月日」欄など、農業所得の確認の承諾に必要な欄を本様式に設けることができる。この場合、「農業所得の確認に関する承諾書」（参考様式第４号別紙様式５）の作成は不要。
A61: 注５：他の市町村で環境保全型農業直接支払を実施している場合は、その市町村名を全て記載すること。
A62: 注６：「みどり認定」の欄は、みどりの食料システム法に基づき、環境負荷低減事業活動実施計画又は特定環境負荷低減事業活動実施計画を作成し、都道府県知事の認定を受けた若しくは受ける予定がある、又は申請予定がない場合についてもいずれかに○をすること。
A63: 注７：「多面的機能支払」のみに取り組む場合、住所の記入は不要。

Sheet 別紙６
AG1: （別紙様式６）
A2: 個 別 協 定
A3: 経営規模及び農業所得調書
A5: 第１ 経営規模
Y6: (単位：a)
B7: 地 目 | F7: 自己所有地 | N7: 借入面積 | V7: 計
B8: 田
B9: 畑
B10: 草 地
B11: 計 | V11: Ａ
B12: 採草放牧地
B13: 注）借入面積には受託面積（基幹３作業）を含む。
A15: 第２ 農業従事者一人当たりの農業所得
N16: （単位：円）
B17: 農業所得① | H17: 農業従事者② | N17: ①／②
B19: 注１ 農業従事者一人当たりの農業所得は以下のとおり算定する。
C20: （確定申告に基づく農業所得＋専従者給与額－負債の償還額）／農業従事者数
C21: 当該農業者が生産組織、農地所有適格法人等の構成員であり、当該生産組織、農地所有適格法人等から給与額又は役員報酬等を受けている場合は、上記農業所得に当該給与額又は役員報酬等を含めるものとする。
C22: (1) 負債の償還額は実施要領の運用第６の１の(1)のイの(ｱ)による。
C23: (2) 農業従事者数は実施要領の運用第６の１の(1)のイの(ｲ)により換算する。
B24: 注２ 農業所得調書には、農業所得額を証明する書類を添付する。
A27: 【農業生産活動等として取り組むべき事項を実施する場合に使用】
A28: 第３ 農業生産活動等として取り組むべき事項
B30: １ 農用地に関する事項
C31: 以下の項目から１項目以上（２で管理の対象とする水路・農道等が、多面的機能支払交付金実施要綱別紙１第５の２に基づく活動計画に定める施設と同一である場合は、２項目以上）を選択する。
A32: ✓ | C32: 多面的機能支払交付金実施要綱別紙１第５の２に基づく活動計画に定める施設と同一。
A33: 該 当 | C33: 具 体 的 に 取 り 組 む 行 為
C34: ①耕作放棄されそうな農用地については、集落内外の担い手農家や第３セクター等による利用権の設定等や農作業の委託を行う。
C35: ②既荒廃農地を協定農用地に含める場合には、荒廃農地の復旧又は畜産的利用を行う。
C36: ③既荒廃農地を協定農用地に含めない場合には、協定農用地に悪影響を与えないよう草刈り、防虫対策等の保全管理を行う。
C37: ④農地法面の崩壊を未然に防止するため、定期的な点検を行う。
C38: ⑤協定農用地への柵、ネット等の設置等により鳥獣害防止対策を行う。
C39: ⑥作業道の設置、排水改良等簡易な基盤整備を行う。
C40: ⑦定農用地における農業生産活動が維持されるよう担い手（認定農業者、これに準ずるものとして市町村長が認定した者、第３セクター、特定農業法人、農業協同組合、生産組織等）を確保する。
C41: ⑧集落の新たな雇用創出や地域経済の活性化に資する地場農産物の加工・販売を行う。
C42: ⑨その他（土地改良事業、災害復旧及び地目変換（田から畑等へ）等）
B44: ２ 水路・農道等の管理方法（①②について該当する取組に○印を記入（複数可））
A45: 具 体 的 に 取 り 組 む 行 為
A46: ①水 路 | F46: ア）水路清掃 | M46: イ）草刈り | T46: ウ）その他（ | AC46: ）
A47: ②農 道 | F47: ア）簡易補修 | M47: イ）草刈り | T47: ウ）その他（ | AC47: ）
A48: ③その他
B50: ３ 多面的機能を増進する活動として以下の項目から１項目以上選択し、実施する。
C51: 以下の項目のうち該当項目に○印を記入する。
A52: 該 当 | C52: 具 体 的 に 取 り 組 む 行 為
C53: ①農地と一体となった周辺林地の下草刈り等を行う。
C54: ②棚田オーナー制度の実施、市民農園・体験農園の開設・運営を行う。
C55: ③景観作物を作付ける。
C56: ④土壌流亡に配慮した営農を行う（等高線栽培、根の張る植物を畝間に植栽）。
C57: ⑤体験民宿を実施する（グリーン・ツーリズム）。
C58: ⑥魚類・昆虫類の保護を行う（ビオトープの確保）。
C59: ⑦冬期の湛水化、不作付地での水張り等の鳥類の餌場の確保を図る。
C60: ⑧粗放的畜産を行う。
C61: ⑨堆きゅう肥の施肥、拮抗植物の利用、アイガモ・鯉の利用、輪作の徹底、緑肥作物の作付け等を行う。
C62: ⑩その他 （ ）
A63: 注）法律で義務づけられている行為及び国庫補助事業の補助対象として行われる行為以外のものを１つ以上選択。
A64: 注）上記１～３で定めた活動を行う際は、作業安全対策の観点から、以下の点に努めること。
B65: ・作業環境の点検（作業前の危険箇所の確認・共有、機器の定期点検等）
B66: ・活動で使用する機械又は使用頻度が高い機械（刈払機等）の安全な使用に関する取組の実施（研修・講習の開催又は参加等）
A68: 第４ 加算措置適用のために取り組むべき事項（加算措置必須要件）
C69: 次の活動のうち取り組む項目に○印を記入するとともに、現状及び達成目標について具体的に記載し、実施する。
B72: 該 当 | E72: 項 目 | M72: 取組期間 | R72: 現状 | Z72: 達成目標
E73: 超急傾斜農地保全管理加算 | M73: 令和 | P73: 年度
M74: ～
M75: 令和 | P75: 年度
B76: 注１）現状は、取組期間の開始年度における地域の現状を記載する。
B77: 注２）達成目標は、取組期間の最終年度までに達成される地域の現状を踏まえた目標を記載する。

Sheet 別紙７
A2: 協定農用地の概要
A3: 【市町村名： 】 | C3: =はじめに!D4 -> 出雲市 | E3: 】
A4: 交付対象者の氏名・名称 | B4: 字 | C4: 地番 | D4: 地目 | E4: 傾斜度 | F4: 面積 | G4: 10ａ当たりの単価 | H4: 交付額 | I4: 設定 権利等 | J4: 農用地の管理 | L4: 設定権利者等名(出し手) | M4: 始期 | N4: 終期 | O4: 契約 年月日 | P4: 交付金の使用方法
J5: 農用地の現況 | K5: 具体的活動内容
A9: 【個別協定の場合】
A10: 注１) 一団の農用地全てを耕作する場合及び別紙様式６の経営規模のＡが都府県にあっては３ ha以上、北海道にあっては30ha以上 (草地では100ha以上)の経営の規模を有している場合は、自作地も記入する。但し、農業従事者一人当たりの農業所得が同一都道府県内の都市部の勤労者一人当たりの平均所得を上回る場合は除く。
A13: 注２) 注１ の農業従事者一人当たりの農業所得は、別紙様式６の第２の注書きにより算出する。
A14: 注３) 注１ の但し書きに該当する者は引受地のみを記入。
A15: 注４) 使用方法には、受託者(個別協定の申請者)の受取額及び受取割合を記入すること。
A18: 【集落協定の場合】
A19: 注１) 農業従事者一人当たりの農業所得が同一都道府県内の都市部の勤労者一人当たりの平均所得を上回る場合にあって、集落協定上の基幹的活動において中核的なリーダーとしての役割を果たす担い手として指定された者において、引受地に対して交付される交付額を個人配分に充てる場合に記入。
A22: 注２) 注１に該当する者の個人配分に充てる引受地のみを記入。
A23: 注３) 使用方法には、受託者(注１に該当する者)の受取額を記入。
A25: 協定農用地の概要
A26: 注１ 農地又は採草放牧地について、所有権移転、賃借権等を設定した場合は、農地法第３条の規定に基づく許可書又は農地中間管理事業の推進に関する法律第18条に基づく農用地利用集積等促進計画の写しを添付のこと。
A28: 注２ 農作業受委託の場合は、別添契約書様式例を参考に契約書を作成し、その写しを添付のこと。
A29: 注３ 申請者の居住する市町村以外に存する農用地について、利用権の設定等を行っており、当該農用地の存する市町村の長に申請書を提出している場合は、当該申請書の写しを添付すること。

Sheet 別紙７（別添）
A2: 農作業受委託契約書（様式例）
A4: 受託者及び委託者は、この契約書の定めるところにより農作業受委託契約を締結する。この契約書は、２通作成して受託者及び委託者がそれぞれ１通所持する。
A7: 令和 年 月 日
V9: 受託者（以下「甲」という。）
Q10: （住所）
Q11: （氏名）
V12: 委託者（以下「乙」という。）
Q13: （住所）
Q14: （氏名）
A16: １ 農作業受委託の内容
B17: 甲は、この契約書に定めるところにより乙により、別表に記載する農作業を受託し、善良なる管理者の注意をもって農作業を実施するものとする。
B19: 乙は、甲が農作業を円滑に行えるよう作付けに十分な配慮をする。
A21: ２ 受託料の支払方法
B22: 乙は、別表に記載された農作業に対して、同表に記載された金額の受託料を同表に記載された方法により甲に支払う。
A25: ３ 契約の変更
B26: 契約事項を変更する場合には、甲、乙合意の上、その変更事項をこの契約書に明記する。
A30: （別 表）
B31: 字 | E31: 地 番 | H31: 地 目 | K31: 面 積 （㎡） | N31: 作 物 | Q31: 作 業 種 類 | T31: 期間 | W31: 受託料の額(円) | Z31: 支 払 方 法 | AC31: 通年・期間の別
Q32: 作業名 | T32: 始期
T33: 終期
B35: 合 計

Sheet 別紙９
J1: （ 別紙様式９ ）
D3: 環境負荷低減のチェックシート（個別協定向け）
C5: 申請時 （します） | D5: （１）適正な施肥 | E5: 報告時 （しました） | H5: 申請時 （します） | I5: （４）悪臭及び害虫の発生防止 | J5: 報告時 （しました）
B7: ① | C7: □ | D7: 肥料の適正な保管 | E7: □ | G7: ⑫ | H7: □ | I7: 悪臭・害虫の発生防止・低減に努める | J7: □
B9: ② | C9: □ | D9: 肥料の使用状況等の記録・保存に努める | E9: □
H10: 申請時 （します） | I10: （５）廃棄物の発生抑制、 適正な循環的な利用及び適正な処分 | J10: 報告時 （しました）
B11: ③ | C11: □ | D11: 作物特性のデータに基づく施肥設計を検討 | E11: □
B13: ④ | C13: □ | D13: 有機物の適正な施用による土づくりを検討 | E13: □ | G13: ⑬ | H13: □ | I13: プラ等廃棄物の削減に努め、適正に処理 | J13: □
C16: 申請時 （します） | D16: （２）適正な防除 | E16: 報告時 （しました） | H16: 申請時 （します） | I16: （６）生物多様性への悪影響の防止 | J16: 報告時 （しました）
B18: ⑤ | C18: □ | D18: 病害虫・雑草が発生しにくい生産条件の整備を検討 | E18: □ | G18: ⑭ | H18: □ | I18: 病害虫・雑草の発生状況を把握した上で防除の要否及びタイミングの判断に努める（再掲） | J18: □
B20: ⑥ | C20: □ | D20: 病害虫・雑草の発生状況を把握した上で防除の要否及びタイミングの判断に努める | E20: □
G21: ⑮ | H21: □ | I21: 多様な防除方法（防除資材、使用方法）を活用した防除を検討（再掲） | J21: □
B23: ⑦ | C23: □ | D23: 多様な防除方法（防除資材、使用方法）を活用した防除を検討 | E23: □
H25: 申請時 （します） | I25: （７）環境関係法令の遵守等 | J25: 報告時 （しました）
B26: ⑧ | C26: □ | D26: 農薬の適正な使用・保管 | E26: □
G27: ⑯ | H27: □ | I27: 「みどりの食料システム戦略」を理解し、適切な事業実施に努める | J27: □
B28: ⑨ | C28: □ | D28: 農薬の使用状況等の記録・保存 | E28: □
G30: ⑰ | H30: □ | I30: 関係法令の遵守 | J30: □
C31: 申請時 （します） | D31: （３）エネルギーの節減 | E31: 報告時 （しました）
G32: ⑱ | H32: □ | I32: 環境配慮の取組方針の策定や研修の実施に努める | J32: □
B33: ⑲ | C33: □ | D33: 農機・ハウス等の電気・燃料の使用状況の記録・保存に努める | E33: □
G34: ⑲ | H34: □ | I34: ※機械等を扱う事業者である場合 機械等の適切な整備と管理に努める （該当しない ） | J34: □
B36: ⑪ | C36: □ | D36: 省エネを意識し、不必要・非効率なエネルギー消費をしないよう努める | E36: □
G38: ⑳ | H38: □ | I38: 正しい知識に基づく作業安全に努める | J38: □
B41: 注１ 申請時は「します」の□、報告時は「しました」の□にチェックしてください。
B42: 注２ 「※」の記載内容に該当しない場合は「（該当しない □）」にチェックしてください。 この場合、当該項目の申請時・報告時のチェックは不要です。

Sheet 【選択肢】 (hidden)
K1: 活動記録で選択された取組番号から、区分、項目、取組を自動入力するための表 | P1: 実施回数のカウント | Q1: ←活動記録に活動項目番号が入力された回数をカウントし、これをもとに実施状況報告書の「実施欄」の○、×を判定しています。 | R1: 都道府県の要綱基本方針において活動項目を追加した場合の設定方法（県の担当者が作業してください）
A2: A.■か□ | B2: B.○か空白 | C2: C.○か－か× | D2: D.農村環境保全活動のテーマ | E2: E.高度な保全活動 | F2: F.施設 | G2: G.単位 | H2: H.構成員一覧の分類 | I2: I.金銭出納簿の区分 | J2: J.金銭出納簿の収支の分類 | K2: 番号 | L2: 支払区分 | M2: 活動区分 | O2: 活動項目 | R2: 要綱基本方針において活動項目を追加した場合、以下の方法により修正することができます。
A3: ■ | B3: ○ | C3: ○ | D3: 生態系保全 | E3: 循環かんがいによる水質保全 | F3: 水路 | G3: km | H3: １.農業者個人 | I3: 1 | J3: １.前年度持越 | K3: 200 | L3: - | M3: 事務処理 | N3: 事務処理 | O3: 200 事務処理 | R3: ●共通：活動記録で、追加した活動番号を入力できるようにする
A4: □ | C4: － | D4: 水質保全 | E4: 浄化水路による水質保全 | F4: 農道 | G4: 箇所 | H4: ２.農事組合法人 | I4: 2 | J4: ２.交付金 | K4: 300 | L4: - | M4: 会議 | N4: 会議 | O4: 300 会議 | R4: １）「取組番号早見表シート」及び「取組番号シート」に番号、支払区分、活動区分、活動項目を追加する。
C5: × | D5: 景観形成・生活環境保全 | E5: 地下水かん養 | F5: ため池 | H5: ３.営農組合 | J5: ３.利子等 | R5: ２）「選択肢」シートのK列～O列の72行以降に行を挿入し、追加した活動番号、支払区分、活動区分、活動項目を入力する。
D6: 水田貯留・地下水かん養 | E6: 持続的な水管理 | H6: ４.その他の農業者団体 | J6: ４.日当 | K6: 1 | L6: 農地維持 | M6: 点検・計画策定 | N6: 点検 | O6: 1 点検 | P6: =COUNTIF(#REF!,'【選択肢】'!K6) ->  | R6: ３）「選択肢」シートＰ列の72行以降にP71セル（活動記録に入力された回数のカウントを行う数式）をコピーする。
D7: 資源循環 | E7: 土壌流出防止 | H7: ５.農業者以外個人 | J7: ５.購入・リース費 | K7: 2 | L7: 農地維持 | M7: 点検・計画策定 | N7: 計画策定 | O7: 2 年度活動計画の策定 | P7: =COUNTIF(#REF!,'【選択肢】'!K7) ->  | R7: （この作業により、活動記録に活動番号が入力された回数がＰ列に入力され、これをもとに実施状況報告書の「実施欄」の○、×を判定します。）
E8: 生物多様性の回復 | H8: ６.自治会 | J8: ６.外注費 | K8: 3 | L8: 農地維持 | M8: 研修 | N8: 研修 | O8: 3 事務・組織運営等に関する研修、機械の安全使用に関する研修 | P8: =COUNTIF(#REF!,'【選択肢】'!K8) -> 
E9: 水環境の回復 | H9: ７.女性会 | J9: ７.その他支出 | K9: 4 | L9: 農地維持 | M9: 実践活動 | N9: 農用地 | O9: 4 遊休農地発生防止のための保全管理 | P9: =COUNTIF(#REF!,'【選択肢】'!K9) ->  | R9: ●農村環境保全活動、多面的機能の増進を図る活動、長寿命化のための活動を追加する場合は以下の設定を行う
E10: 持続的な畦畔管理 | H10: ８.子供会 | J10: ８.返還 | K10: 5 | L10: 農地維持 | M10: 実践活動 | N10: 農用地 | O10: 5 畦畔・法面・防風林の草刈り | P10: =COUNTIF(#REF!,'【選択肢】'!K10) ->  | R10: ①農村環境保全活動の項目を追加する場合
E11: 専門家の指導 | H11: ９.土地改良区 | K11: 6 | L11: 農地維持 | M11: 実践活動 | N11: 農用地 | O11: 6 鳥獣害防護柵等の保守管理 | P11: =COUNTIF(#REF!,'【選択肢】'!K11) ->  | R11: 活動計画書３（２）１）で実践活動を選択する際に、追加した項目を選択できるようにする
H12: 10.JA | K12: 7 | L12: 農地維持 | M12: 実践活動 | N12: 水路 | O12: 7 水路の草刈り | P12: =COUNTIF(#REF!,'【選択肢】'!K12) ->  | R12: １）「選択肢」シートのQ列の「50 地域資源の～」の下に番号と活動項目を入力する。
H13: 11.学校・PTA | K13: 8 | L13: 農地維持 | M13: 実践活動 | N13: 水路 | O13: 8 水路の泥上げ | P13: =COUNTIF(#REF!,'【選択肢】'!K13) ->  | R13: このとき、「●共通」で入力した活動項目名と同じになるように注意してください。
H14: 12.NPO | K14: 9 | L14: 農地維持 | M14: 実践活動 | N14: 水路 | O14: 9 水路附帯施設の保守管理 | P14: =COUNTIF(#REF!,'【選択肢】'!K14) ->  | R14: ２）「数式」タブの「名前の管理」を選択し、リストの中から「K.農村環境保全活動」を選択し、「参照範囲」の右のアイコンをクリック
H15: 13.その他の農業者以外団体 | K15: 10 | L15: 農地維持 | M15: 実践活動 | N15: 農道 | O15: 10 農道の草刈り | P15: =COUNTIF(#REF!,'【選択肢】'!K15) ->  | R15: ３）参照範囲に追加した活動項目を含むよう範囲を選択し直し、確定する。
K16: 11 | L16: 農地維持 | M16: 実践活動 | N16: 農道 | O16: 11 農道側溝の泥上げ | P16: =COUNTIF(#REF!,'【選択肢】'!K16) -> 
K17: 12 | L17: 農地維持 | M17: 実践活動 | N17: 農道 | O17: 12 路面の維持 | P17: =COUNTIF(#REF!,'【選択肢】'!K17) ->  | R17: ②多面的機能の増進を図る活動の項目を追加する場合
K18: 13 | L18: 農地維持 | M18: 実践活動 | N18: ため池 | O18: 13 ため池の草刈り | P18: =COUNTIF(#REF!,'【選択肢】'!K18) ->  | R18: ②-1 活動計画書３（２）２）で都道府県、市町村が認める具体的な活動の内容を選択できるようにする
K19: 14 | L19: 農地維持 | M19: 実践活動 | N19: ため池 | O19: 14 ため池の泥上げ | P19: =COUNTIF(#REF!,'【選択肢】'!K19) ->  | R19: １）「選択肢」シートのR列の「59 都道府県、～」の下に番号と活動項目を入力する。
K20: 15 | L20: 農地維持 | M20: 実践活動 | N20: ため池 | O20: 15 ため池附帯施設の保守管理 | P20: =COUNTIF(#REF!,'【選択肢】'!K20) ->  | R20: ２）「数式」タブの「名前の定義」を選択し、任意のリスト名と参照範囲を設定する。
K21: 16 | L21: 農地維持 | M21: 実践活動 | N21: 共通 | O21: 16 異常気象時の対応 | P21: =COUNTIF(#REF!,'【選択肢】'!K21) ->  | R21: ３）「活動計画書」シートの３.の（２）の２）の「都道府県、市町村が認める具体的な活動」の記入欄を選択した状態で
K22: 17 | L22: 農地維持 | M22: 推進活動 | N22: 推進活動 | O22: 17 農業者の検討会の開催 | P22: =COUNTIF(#REF!,'【選択肢】'!K22) ->  | R22: 「データ」タブの「データの入力規則」を選択する。
K23: 18 | L23: 農地維持 | M23: 推進活動 | N23: 推進活動 | O23: 18 農業者に対する意向調査、現地調査 | P23: =COUNTIF(#REF!,'【選択肢】'!K23) ->  | R23: ４）入力値の設定を「リスト」にし、「元の値」の表示の入力欄を選択した状態で「数式」タブの「数式で使用」を選択する。
K24: 19 | L24: 農地維持 | M24: 推進活動 | N24: 推進活動 | O24: 19 不在村地主との連絡体制の整備等 | P24: =COUNTIF(#REF!,'【選択肢】'!K24) ->  | R24: ５）リストの中から２）で設定したリスト名を選択し確定する。
K25: 20 | L25: 農地維持 | M25: 推進活動 | N25: 推進活動 | O25: 20 集落外住民や地域住民との意見交換等 | P25: =COUNTIF(#REF!,'【選択肢】'!K25) -> 
K26: 21 | L26: 農地維持 | M26: 推進活動 | N26: 推進活動 | O26: 21 地域住民等に対する意向調査等 | P26: =COUNTIF(#REF!,'【選択肢】'!K26) ->  | R26: ②-2 活動計画書４（２）の加算措置の適用条件の確認ができるようにする
K27: 22 | L27: 農地維持 | M27: 推進活動 | N27: 推進活動 | O27: 22 有識者等による研修会、検討会の開催 | P27: =COUNTIF(#REF!,'【選択肢】'!K27) ->  | R27: 「加算措置」シートの（２）資源向上支払（共同）の多面的機能の更なる増進に向けた活動への支援の適用条件の確認欄に
K28: 23 | L28: 農地維持 | M28: 推進活動 | N28: 推進活動 | O28: 23 その他 | P28: =COUNTIF(#REF!,'【選択肢】'!K28) ->  | R28: 新たに行を追加し、追加した活動項目を入力する。
K29: 24 | L29: 共同 | M29: 機能診断・計画策定 | N29: 機能診断 | O29: 24 農用地の機能診断 | P29: =COUNTIF(#REF!,'【選択肢】'!K29) -> 
K30: 25 | L30: 共同 | M30: 機能診断・計画策定 | N30: 機能診断 | O30: 25 水路の機能診断 | P30: =COUNTIF(#REF!,'【選択肢】'!K30) ->  | R30: ③長寿命化の項目を追加する場合
K31: 26 | L31: 共同 | M31: 機能診断・計画策定 | N31: 機能診断 | O31: 26 農道の機能診断 | P31: =COUNTIF(#REF!,'【選択肢】'!K31) ->  | R31: 活動計画書３（３）で実践活動を選択する際に、追加した項目を選択できるようにする
K32: 27 | L32: 共同 | M32: 機能診断・計画策定 | N32: 機能診断 | O32: 27 ため池の機能診断 | P32: =COUNTIF(#REF!,'【選択肢】'!K32) ->  | R32: １）「選択肢」シートのM列の「66 ため池（附帯施設）の更新等」の下に番号と活動項目名を入力する
K33: 28 | L33: 共同 | M33: 機能診断・計画策定 | N33: 計画策定 | O33: 28 年度活動計画の策定 | P33: =COUNTIF(#REF!,'【選択肢】'!K33) ->  | R33: ２）「数式」タブの「名前の管理」を選択し、リストから「M.長寿命化」を選択し、「参照範囲」の右のアイコンをクリック
K34: 29 | L34: 共同 | M34: 研修 | N34: 研修 | O34: 29 機能診断・補修技術等に関する研修 | P34: =COUNTIF(#REF!,'【選択肢】'!K34) ->  | R34: ３）参照範囲に追加した活動項目を含むよう範囲を選択し直し、確定する。
K35: 30 | L35: 共同 | M35: 実践活動 | N35: 農用地 | O35: 30 農用地の軽微な補修等 | P35: =COUNTIF(#REF!,'【選択肢】'!K35) -> 
K36: 31 | L36: 共同 | M36: 実践活動 | N36: 水路 | O36: 31 水路の軽微な補修等 | P36: =COUNTIF(#REF!,'【選択肢】'!K36) -> 
K37: 32 | L37: 共同 | M37: 実践活動 | N37: 農道 | O37: 32 農道の軽微な補修等 | P37: =COUNTIF(#REF!,'【選択肢】'!K37) -> 
K38: 33 | L38: 共同 | M38: 実践活動 | N38: ため池 | O38: 33 ため池の軽微な補修等 | P38: =COUNTIF(#REF!,'【選択肢】'!K38) -> 
K39: 34 | L39: 共同 | M39: 計画策定 | N39: 生態系保全 | O39: 34 生物多様性保全計画の策定 | P39: =COUNTIF(#REF!,'【選択肢】'!K39) -> 
K40: 35 | L40: 共同 | M40: 計画策定 | N40: 水質保全 | O40: 35 水質保全計画、農地保全計画の策定 | P40: =COUNTIF(#REF!,'【選択肢】'!K40) -> 
K41: 36 | L41: 共同 | M41: 計画策定 | N41: 景観形成・生活環境保全 | O41: 36 景観形成計画、生活環境保全計画の策定 | P41: =COUNTIF(#REF!,'【選択肢】'!K41) -> 
K42: 37 | L42: 共同 | M42: 計画策定 | N42: 水田貯留・地下水かん養 | O42: 37 水田貯留計画、地下水かん養計画の策定 | P42: =COUNTIF(#REF!,'【選択肢】'!K42) ->  | Q42: 活動計画書、実施状況報告書のプルダウン選択用
K43: 38 | L43: 共同 | M43: 計画策定 | N43: 資源循環 | O43: 38 資源循環計画の策定 | P43: =COUNTIF(#REF!,'【選択肢】'!K43) ->  | Q43: Ｋ.農村環境保全活動
K44: 39 | L44: 共同 | M44: 実践活動 | N44: 生態系保全 | O44: 39 生物の生息状況の把握（生態系保全） | P44: =COUNTIF(#REF!,'【選択肢】'!K44) ->  | Q44: 39 生物の生息状況の把握（生態系保全）
K45: 40 | L45: 共同 | M45: 実践活動 | N45: 生態系保全 | O45: 40 外来種の駆除（生態系保全） | P45: =COUNTIF(#REF!,'【選択肢】'!K45) ->  | Q45: 40 外来種の駆除（生態系保全）
K46: 41 | L46: 共同 | M46: 実践活動 | N46: 生態系保全 | O46: 41 その他（生態系保全） | P46: =COUNTIF(#REF!,'【選択肢】'!K46) ->  | Q46: 41 その他（生態系保全）
K47: 42 | L47: 共同 | M47: 実践活動 | N47: 水質保全 | O47: 42 水質モニタリングの実施・記録管理（水質保全） | P47: =COUNTIF(#REF!,'【選択肢】'!K47) ->  | Q47: 42 水質モニタリングの実施・記録管理（水質保全）
K48: 43 | L48: 共同 | M48: 実践活動 | N48: 水質保全 | O48: 43 畑からの土砂流出対策（水質保全） | P48: =COUNTIF(#REF!,'【選択肢】'!K48) ->  | Q48: 43 畑からの土砂流出対策（水質保全）
K49: 44 | L49: 共同 | M49: 実践活動 | N49: 水質保全 | O49: 44 その他（水質保全） | P49: =COUNTIF(#REF!,'【選択肢】'!K49) ->  | Q49: 44 その他（水質保全）
K50: 45 | L50: 共同 | M50: 実践活動 | N50: 景観形成・生活環境保全 | O50: 45 植栽等の景観形成活動（景観形成・生活環境保全） | P50: =COUNTIF(#REF!,'【選択肢】'!K50) ->  | Q50: 45 植栽等の景観形成活動（景観形成・生活環境保全）
K51: 46 | L51: 共同 | M51: 実践活動 | N51: 景観形成・生活環境保全 | O51: 46 施設等の定期的な巡回点検・清掃（景観形成・生活環境保全） | P51: =COUNTIF(#REF!,'【選択肢】'!K51) ->  | Q51: 46 施設等の定期的な巡回点検・清掃（景観形成・生活環境保全）
K52: 47 | L52: 共同 | M52: 実践活動 | N52: 景観形成・生活環境保全 | O52: 47 その他（景観形成・生活環境保全） | P52: =COUNTIF(#REF!,'【選択肢】'!K52) ->  | Q52: 47 その他（景観形成・生活環境保全）
K53: 48 | L53: 共同 | M53: 実践活動 | N53: 水田貯留・地下水かん養 | O53: 48 水田の貯留機能向上活動（水田貯留機能増進・地下水かん養） | P53: =COUNTIF(#REF!,'【選択肢】'!K53) ->  | Q53: 48 水田の貯留機能向上活動（水田貯留機能増進・地下水かん養）
K54: 49 | L54: 共同 | M54: 実践活動 | N54: 水田貯留・地下水かん養 | O54: 49 地下水かん養活動、水源かん養林の保全（水田貯留機能増進・地下水かん養） | P54: =COUNTIF(#REF!,'【選択肢】'!K54) ->  | Q54: 49 地下水かん養活動、水源かん養林の保全（水田貯留機能増進・地下水かん養）
K55: 50 | L55: 共同 | M55: 実践活動 | N55: 資源循環 | O55: 50 地域資源の活用・資源循環活動（資源循環） | P55: =COUNTIF(#REF!,'【選択肢】'!K55) ->  | Q55: 50 地域資源の活用・資源循環活動（資源循環） | R55: 活動計画書、実施状況報告書のプルダウン選択用
K56: 51 | L56: 共同 | M56: 啓発・普及 | N56: 啓発・普及 | O56: 51 啓発・普及活動 | P56: =COUNTIF(#REF!,'【選択肢】'!K56) ->  | R56: Ｌ.増進活動
K57: 52 | L57: 共同 | M57: 増進活動 | N57: 増進活動 | O57: 52 遊休農地の有効活用 | P57: =COUNTIF(#REF!,'【選択肢】'!K57) ->  | R57: 52 遊休農地の有効活用
K58: 53 | L58: 共同 | M58: 増進活動 | N58: 増進活動 | O58: 53 鳥獣被害防止対策及び環境改善活動の強化 | P58: =COUNTIF(#REF!,'【選択肢】'!K58) ->  | R58: 53 農地周りの環境改善活動の強化
K59: 54 | L59: 共同 | M59: 増進活動 | N59: 増進活動 | O59: 54 地域住民による直営施工 | P59: =COUNTIF(#REF!,'【選択肢】'!K59) ->  | R59: 54 地域住民による直営施工
K60: 55 | L60: 共同 | M60: 増進活動 | N60: 増進活動 | O60: 55 防災・減災力の強化 | P60: =COUNTIF(#REF!,'【選択肢】'!K60) ->  | R60: 55 防災・減災力の強化
K61: 56 | L61: 共同 | M61: 増進活動 | N61: 増進活動 | O61: 56 農村環境保全活動の幅広い展開 | P61: =COUNTIF(#REF!,'【選択肢】'!K61) ->  | R61: 56 農村環境保全活動の幅広い展開
K62: 57 | L62: 共同 | M62: 増進活動 | N62: 増進活動 | O62: 57 やすらぎ・福祉及び教育機能の活用 | P62: =COUNTIF(#REF!,'【選択肢】'!K62) ->  | R62: 57 やすらぎ・福祉及び教育機能の活用
K63: 58 | L63: 共同 | M63: 増進活動 | N63: 増進活動 | O63: 58 農村文化の伝承を通じた農村コミュニティの強化 | P63: =COUNTIF(#REF!,'【選択肢】'!K63) ->  | R63: 58 農村文化の伝承を通じた農村コミュニティの強化
K64: 59 | L64: 共同 | M64: 増進活動 | N64: 増進活動 | O64: 59 都道府県、市町村が特に認める活動 | P64: =COUNTIF(#REF!,'【選択肢】'!K64) ->  | R64: 59 都道府県、市町村が特に認める活動 | S64: 活動計画書、実施状況報告書のプルダウン選択用
K65: 60 | L65: 共同 | M65: 増進活動 | N65: 増進活動 | O65: 60 広報活動・農的関係人口の拡大 | P65: =COUNTIF(#REF!,'【選択肢】'!K65) ->  | S65: Ｍ.長寿命化
K66: 61 | L66: 長寿命化 | M66: 実践活動 | N66: 水路 | O66: 61 水路の補修 | P66: =COUNTIF(#REF!,'【選択肢】'!K66) ->  | S66: 61 水路の補修
K67: 62 | L67: 長寿命化 | M67: 実践活動 | N67: 水路 | O67: 62 水路の更新等 | P67: =COUNTIF(#REF!,'【選択肢】'!K67) ->  | S67: 62 水路の更新等
K68: 63 | L68: 長寿命化 | M68: 実践活動 | N68: 農道 | O68: 63 農道の補修 | P68: =COUNTIF(#REF!,'【選択肢】'!K68) ->  | S68: 63 農道の補修
K69: 64 | L69: 長寿命化 | M69: 実践活動 | N69: 農道 | O69: 64 農道の更新等 | P69: =COUNTIF(#REF!,'【選択肢】'!K69) ->  | S69: 64 農道の更新等
K70: 65 | L70: 長寿命化 | M70: 実践活動 | N70: ため池 | O70: 65 ため池の補修 | P70: =COUNTIF(#REF!,'【選択肢】'!K70) ->  | S70: 65 ため池の補修
K71: 66 | L71: 長寿命化 | M71: 実践活動 | N71: ため池 | O71: 66 ため池（附帯施設）の更新等 | P71: =COUNTIF(#REF!,'【選択肢】'!K71) ->  | S71: 66 ため池（附帯施設）の更新等
K72: 67 | L72: 中山間直払 | M72: - | N72: - | O72: 農地法面の見回り | P72: =COUNTIF(#REF!,'【選択肢】'!K72) -> 
K73: 68 | L73: 中山間直払 | M73: - | N73: - | O73: 鳥獣被害防止対策 | P73: =COUNTIF(#REF!,'【選択肢】'!K73) -> 
K74: 69 | L74: 中山間直払 | M74: - | N74: - | O74: 水路管理活動 | P74: =COUNTIF(#REF!,'【選択肢】'!K74) -> 
K75: 70 | L75: 中山間直払 | M75: - | N75: - | O75: 農道管理活動 | P75: =COUNTIF(#REF!,'【選択肢】'!K75) -> 
K76: 71 | L76: 中山間直払 | M76: - | N76: - | O76: 周辺林地の下草刈り | P76: =COUNTIF(#REF!,'【選択肢】'!K76) -> 
K77: 72 | L77: 中山間直払 | M77: - | N77: - | O77: 景観作物作付け活動 | P77: =COUNTIF(#REF!,'【選択肢】'!K77) -> 
K78: 73 | L78: 中山間直払 | M78: - | N78: - | O78: ネットワーク化活動計画の話合い | P78: =COUNTIF(#REF!,'【選択肢】'!K78) -> 
K79: 74 | L79: 中山間直払 | M79: - | N79: - | O79: 総会 | P79: =COUNTIF(#REF!,'【選択肢】'!K79) -> 
K80: 75 | L80: 中山間直払 | M80: - | N80: - | O80: 役員会 | P80: =COUNTIF(#REF!,'【選択肢】'!K80) -> 
K81: 76 | L81: 中山間直払 | M81: - | N81: - | O81: 現地確認立会い | P81: =COUNTIF(#REF!,'【選択肢】'!K81) -> 
K82: 77 | L82: 中山間直払 | M82: - | N82: - | O82: 市役所打合せ | P82: =COUNTIF(#REF!,'【選択肢】'!K82) -> 
K83: 78 | L83: 中山間直払 | M83: - | N83: - | O83: 研修 | P83: =COUNTIF(#REF!,'【選択肢】'!K83) -> 
K84: 79 | L84: 中山間直払 | M84: - | N84: - | O84: その他 | P84: =COUNTIF(#REF!,'【選択肢】'!K84) -> 
K85: 80 | L85: 中山間直払 | M85: - | N85: - | O85: ※適宜【選択肢】シートに項目を追加ください | P85: =COUNTIF(#REF!,'【選択肢】'!K85) -> 
M86: この線より上に行を挿入してください。

Sheet 実施状況報告（様式2） (hidden)
A1: [001]協定識別コード | B1: [002]都道府県名 | C1: [003]市町村名 | D1: [004]地方公共団体コード | E1: [005]集落協定名 | F1: [006]協定整理番号 | G1: 協定識別コード重複確認セル | H1: [007]協定の所在地 | I1: [008]協定認定年度（交付開始年度） | J1: [010]複数の市町村にまたがる協定の事項 | K1: [012]協定参加者総計 | L1: [013]うち中核的リーダー | M1: [016]農業者（人） | N1: [017]農業法人数 | O1: [018]農業生産組織数 | P1: [019]土地改良区 | Q1: [020]水利組合 | R1: [021]非農業者（人） | S1: [022]その他 | T1: [023]協定参加者の年齢区分別計 | U1: [024]参加者_39歳以下 | V1: [025]参加者_40～44歳 | W1: [026]参加者_45～49歳 | X1: [027]参加者_50～54歳 | Y1: [028]参加者_55～59歳 | Z1: [029]参加者_60～64歳 | AA1: [030]参加者_65～69歳 | AB1: [031]参加者_70～74歳 | AC1: [032]参加者_75～79歳 | AD1: [033]参加者_80歳以上 | AE1: [034]地域区分 | AF1: [035]協定締結面積総計 | AG1: [036]田_面積計 | AH1: [037]田_急傾斜 | AI1: [038]田_緩傾斜 | AJ1: [039]田_高齢化・耕作放棄率 | AK1: [040]田_小区画不整形 | AL1: [041]田_特認基準 | AM1: [042]田_交付対象外 | AN1: [043]畑_面積計 | AO1: [044]畑_急傾斜 | AP1: [045]畑_緩傾斜 | AQ1: [046]畑_高齢化・耕作放棄率 | AR1: [047]畑_特認基準 | AS1: [048]畑_交付対象外（田畑混在） | AT1: [049]畑_交付対象外（田畑混在以外） | AU1: [050]草地_面積計 | AV1: [051]草地_急傾斜 | AW1: [052]草地_緩傾斜 | AX1: [053]草地_草地比率の高い草地 | AY1: [054]草地_高齢化・耕作放棄率 | AZ1: [055]草地_特認基準 | BA1: [056]草地_交付対象外（田草地混在） | BB1: [057]草地_交付対象外（田草地混在以外） | BC1: [058]採草放牧地_面積計 | BD1: [059]採草放牧地_急傾斜 | BE1: [060]採草放牧地_緩傾斜 | BF1: [061]採草放牧地_特認基準 | BG1: [062]採草放牧地_交付対象外（田採草放牧地混在） | BH1: [063]採草放牧地_交付対象外（田採草放牧地混在以外) | BI1: [064]通常地域_面積計 | BJ1: [065]通常地域_田_面積計 | BK1: [066]通常地域_田_急傾斜 | BL1: [067]通常地域_田_緩傾斜 | BM1: [068]通常地域_田_高齢化耕作放棄率 | BN1: [069]通常地域_田_小区画不整形 | BO1: [070]通常地域_田_特認基準 | BP1: [071]通常地域_田_交付対象外 | BQ1: [072]通常地域_畑_面積計 | BR1: [073]通常地域_畑_急傾斜 | BS1: [074]通常地域_畑_緩傾斜 | BT1: [075]通常地域_畑_高齢化耕作放棄率 | BU1: [076]通常地域_畑_特認基準 | BV1: [077]通常地域_畑_交付対象外（田畑混在） | BW1: [078]通常地域_畑_交付対象外（田畑混在以外） | BX1: [079]通常地域_草地_面積計 | BY1: [080]通常地域_草地_急傾斜 | BZ1: [081]通常地域_草地_緩傾斜 | CA1: [082]通常地域_草地_草地比率の高い草地 | CB1: [083]通常地域_草地_高齢化耕作放棄率 | CC1: [084]通常地域_草地_特認基準 | CD1: [085]通常地域_草地_交付対象外（田草地混在） | CE1: [086]通常地域_草地_交付対象外（田草地混在以外） | CF1: [087]通常地域_採草放牧地_面積計 | CG1: [088]通常地域_採草放牧地_急傾斜 | CH1: [089]通常地域_採草放牧地_緩傾斜 | CI1: [090]通常地域_採草放牧地_特認基準 | CJ1: [091]通常地域_採草放牧地_交付対象外（田採草混在） | CK1: [092]通常地域_採草放牧地_交付対象外（田採草混在以外） | CL1: [093]特認地域_基準区分 | CM1: [094]特認地域_面積計 | CN1: [095]特認地域_田_面積計 | CO1: [096]特認地域_田_急傾斜 | CP1: [097]特認地域_田_緩傾斜 | CQ1: [098]特認地域_田_高齢化耕作放棄率 | CR1: [099]特認地域_田_小区画不整形 | CS1: [100]特認地域_田_特認基準 | CT1: [101]特認地域_田_交付対象外 | CU1: [102]特認地域_畑_面積計 | CV1: [103]特認地域_畑_急傾斜 | CW1: [104]特認地域_畑_緩傾斜 | CX1: [105]特認地域_畑_高齢化耕作放棄率 | CY1: [106]特認地域_畑_特認基準 | CZ1: [107]特認地域_畑_交付対象外（田畑混在） | DA1: [108]特認地域_畑_（田畑混在地以外） | DB1: [109]特認地域_草地_面積計 | DC1: [110]特認地域_草地_急傾斜 | DD1: [111]特認地域_草地_緩傾斜 | DE1: [112]特認地域_草地_草地比率の高い草地 | DF1: [113]特認地域_草地_高齢化耕作放棄率 | DG1: [114]特認地域_草地_特認基準 | DH1: [115]特認地域_草地_交付対象外（田草地混在） | DI1: [116]特認地域_草地_交付対象外（田草地混在以外） | DJ1: [117]特認地域_採草放牧地_面積計 | DK1: [118]特認地域_採草放牧地_急傾斜 | DL1: [119]特認地域_採草放牧地_緩傾斜 | DM1: [120]特認地域_採草放牧地_特認基準 | DN1: [121]特認地域_採草放牧地_交付対象外（田採草混在地） | DO1: [122]特認地域_採草放牧地_交付対象外（田採草混在地以外） | DP1: [123]本体交付金交付額 | DQ1: [124]うち国費 | DR1: [125]協定農用地の一部除外_面積計 | DS1: [126]協定農用地の一部除外_耕作未実施_計 | DT1: [127]協定農用地の一部除外_耕作未実施_耕作放棄 | DU1: [128]協定農用地の一部除外_耕作未実施_転用 | DV1: [131]協定農用地の一部除外_耕作未実施_その他 | DW1: [132]協定農用地の一部除外_耕作未実施_その他の内容 | DX1: [133]協定農用地の一部除外_復旧未実施 | DY1: [134]協定農用地の一部除外_死亡・病気・高齢 | DZ1: [135]協定農用地の一部除外_自然災害 | EA1: [136]協定農用地の一部除外_土地収用 | EB1: [137]協定農用地の一部除外_農業用施設 | EC1: [144]復旧_既荒廃農地 | ED1: [145]復旧_既荒廃農地_うち復旧済面積 | EE1: [146]復旧_既荒廃農地_田 | EF1: [147]復旧_既荒廃農地_畑 | EG1: [148]復旧_既荒廃農地_草地 | EH1: [149]復旧_自然災害 | EI1: [150]復旧_自然災害_うち復旧済面積 | EJ1: [151]協定に含めない管理すべき荒廃農地の管理面積 | EK1: [152]棚田加算_取組状況 | EL1: [153]棚田加算_加算面積_計 | EM1: [154]棚田加算_加算面積_田 | EN1: [155]棚田加算_加算面積_畑 | EO1: [156]棚田加算_加算金額 | EP1: [157]棚田加算_うち国費 | EQ1: [158]超急傾斜地棚田加算_取組状況 | ER1: [159]超急傾斜地棚田加算_加算面積_計 | ES1: [160]超急傾斜地棚田加算_加算面積_田 | ET1: [161]超急傾斜地棚田加算_加算面積_畑 | EU1: [162]超急傾斜地棚田加算_加算金額 | EV1: [163]超急傾斜地棚田加算_うち国費 | EW1: [164]棚田加算_目標_棚田等の保全 | EX1: [165]棚田加算_目標_棚田等の保全_目標年度 | EY1: [166]棚田加算_目標_棚田等の保全_達成状況 | EZ1: [167]棚田加算_目標_多面的機能の維持発揮 | FA1: [168]棚田加算_目標_多面的機能の維持発揮_目標年度 | FB1: [169]棚田加算_目標_多面的機能の維持発揮_達成状況 | FC1: [170]棚田加算_目標_棚田地域の振興 | FD1: [171]棚田加算_目標_棚田地域の振興_目標年度 | FE1: [172]棚田加算_目標_棚田地域の振興_達成状況 | FF1: [173]超急傾加算_取組状況 | FG1: [174]超急傾加算_加算面積_計 | FH1: [175]超急傾加算_加算面積_田 | FI1: [176]超急傾加算_加算面積_畑 | FJ1: [177]超急傾加算_加算金額 | FK1: [178]超急傾加算_うち国費 | FL1: [179]超急傾加算_目標_保全_法面の維持・補修 | FM1: [180]超急傾加算_目標_保全_耕作道、ほ場進入路等の維持 | FN1: [181]超急傾加算_目標_保全_作業足場の設置、ほ場進入路の改良等 | FO1: [182]超急傾加算_目標_保全_土壌流入、土壌流出の防止 | FP1: [183]超急傾加算_目標_保全_農薬散布等の施設の整備 | FQ1: [184]超急傾加算_目標_保全_共同防除体制の構築 | FR1: [185]超急傾加算_目標_保全_鳥獣害防止施設の維持 | FS1: [186]超急傾加算_目標_保全_鳥獣害防止施設の設置 | FT1: [187]超急傾加算_目標_保全_その他 | FU1: [188]超急傾加算_目標_保全_その他の内容 | FV1: [189]超急傾加算_目標_販売_共通パッケージの作成 | FW1: [190]超急傾加算_目標_販売_パンフレットの作成 | FX1: [191]超急傾加算_目標_販売_農産物の加工 | FY1: [192]超急傾加算_目標_販売_直売所等での販売 | FZ1: [193]超急傾加算_目標_販売_ブランド化 | GA1: [194]超急傾加算_目標_販売_景観作物の植栽 | GB1: [195]超急傾加算_目標_販売_環境に配慮した農業 | GC1: [196]超急傾加算_目標_販売_都市住民との交流 | GD1: [197]超急傾加算_目標_販売_施設の設置・運営 | GE1: [198]超急傾加算_目標_販売_棚田オーナー制度 | GF1: [199]超急傾加算_目標_販売_その他 | GG1: [200]超急傾加算_目標_販売_その他の内容 | GH1: [201]ネットワーク化加算_取組状況 | GI1: [202]ネットワーク化加算_加算面積計 | GJ1: [203]ネットワーク化加算_加算金額 | GK1: [204]ネットワーク化加算_うち国費 | GL1: [205]ネットワーク化加算_ネットワーク化集落数 | GM1: [206]ネットワーク化加算_統合集落数 | GN1: [207]ネットワーク化加算_人材確保数 | GO1: [208]ネットワーク化加算_集落内からの人材確保数 | GP1: [209]ネットワーク化加算_集落外からの人材確保数 | GQ1: [210]ネットワーク化加算_確保された人材が担う地域活動数 | GR1: [211]ネットワーク化加算_確保された人材が担う地域活動_集落協定組織の活動 | GS1: [212]ネットワーク化加算_確保された人材が担う地域活動_農業生産組織の活動 | GT1: [213]ネットワーク化加算_確保された人材が担う地域活動_加工・販売組織の活動 | GU1: [214]ネットワーク化加算_目標 | GV1: [215]ネットワーク加算_目標_目標年度 | GW1: [216]ネットワーク化加算_目標_達成状況 | GX1: [217]スマート農業加算_取組状況 | GY1: [218]スマート農業加算_加算面積計 | GZ1: [219]スマート農業加算_加算金額 | HA1: [220]スマート農業加算_うち国費 | HB1: [221]スマート農業加算_目標 | HC1: [222]スマート農業加算_目標年度 | HD1: [223]スマート農業加算_達成状況 | HE1: [224]集落機能強化加算の経過措置_取組状況 | HF1: [225]集落機能強化加算の経過措置_加算面積計 | HG1: [226]集落機能強化加算の経過措置_加算金額 | HH1: [227]集落機能強化加算の経過措置_うち国費 | HI1: [228]集落機能強化加算の経過措置_目標 | HJ1: [229]集落機能強化加算の経過措置_目標年度 | HK1: [230]集落機能強化加算の経過措置_達成状況 | HL1: [231]体制整備単価 | HM1: [232]基礎単価 | HN1: [233]交付金額（円） | HO1: [234]交付金額_うち国費 | HP1: [235]共同取組活動充当額 | HQ1: [236]共同取組活動充当割合 | HR1: [237]個人配分額 | HS1: [238]前年度末積立等残高 | HT1: [239]今年度交付額＋前年度末積立等残高 | HU1: [240]個人配分支出総額 | HV1: [241]共同取組活動支出総額 | HW1: [242]役員報酬 | HX1: [243]研修会費 | HY1: [244]道水路管理費 | HZ1: [245]農地管理費 | IA1: [246]鳥獣害防止対策費 | IB1: [247]共同利用機械購入等費 | IC1: [248]共同利用施設整備等費 | ID1: [249]多面的機能増進活動費 | IE1: [250]土地利用調整関係費 | IF1: [251]法人設立関係費 | IG1: [252]農産物等販売促進費 | IH1: [253]都市農村交流促進関係費 | II1: [254]その他 | IJ1: [255]積立等_計 | IK1: [256]繰越 | IL1: [257]耕作放棄防止活動（項目数） | IM1: [258]多面的機能支払交付金と同一施設 | IN1: [259]賃借権設定・農作業の委託 | IO1: [260]既荒廃農地復旧、林地化、畜産利用 | IP1: [261]既荒廃農用地の保全管理 | IQ1: ［262］農地の法面管理 | IR1: [263]柵、ネットの設置等鳥獣被害防止 | IS1: [265]簡易な基盤整備 | IT1: [266]担い手の確保 | IU1: [267]地場農産物の加工・販売 | IV1: [268]その他 | IW1: [269]道・水路等の管理活動（項目数） | IX1: [270]水路の管理 | IY1: [271]農道の管理 | IZ1: [272]その他の施設の管理 | JA1: [273]多面的機能の維持・増進活動（項目数） | JB1: [274]周辺林地の下草刈 | JC1: [275]土壌流亡に配慮した営農 | JD1: [277]市民農園等の開設・運営 | JE1: [278]体験民宿（グリーン・ツーリズム） | JF1: [279]景観作物の作付け | JG1: [280]魚類・昆虫類の保護 | JH1: [281]鳥類の餌場の確保 | JI1: [282]粗放的畜産 | JJ1: [283]堆きゅう肥施肥、拮抗作物利用、合鴨・鯉利用、輪作徹底、緑肥作付 | JK1: [284]その他活動 | JL1: [285]集落マスタープラン目指すべき将来像のチェック | JM1: [286]将来にわたり農業生産活動等が可能となる集落内の実施体制構築 | JN1: [287]協定の担い手となる新たな人材の育成・確保 | JO1: [288]協定参加者それぞれが、作物生産、加工・直売等様々な工夫により再生可能な所得を確保 | JP1: [289]その他 | JQ1: [290]その他の内容 | JR1: [291]活動方策のチェック | JS1: [292]機械・農作業の共同化等営農組織の育成 | JT1: [293]高付加価値型農業 | JU1: [294]農業生産条件の強化 | JV1: [295]担い手への農地集積 | JW1: [296]担い手への農作業の委託 | JX1: [297]新規就農者等による農業生産 | JY1: [298]地場産農産物等の加工・販売 | JZ1: [299]消費・出資の呼び込み | KA1: [300]共同で支え合う集団的かつ持続的な体制整備 | KB1: [301]その他 | KC1: [302]その他の内容 | KD1: [303]ネットワーク化活動計画の作成状況 | KE1: [304]体制整備単価取組_ネットワーク化 | KF1: [305]体制整備単価取組_統合 | KG1: [306]体制整備単価取組_多様な組織の参画 | KH1: [302]協定農用地の将来像の合計 | KI1: [303]管理者が引き続き耕作 | KJ1: [304]後継者が耕作を継承 | KK1: [305]担い手等に引き受けてもらう（受け手が決まっている） | KL1: [306]担い手等に引き受けてもらうことを希望（受け手が決まっていない） | KM1: [307]中間管理機構への貸し付けを希望 | KN1: [308]草刈り等管理のみ | KO1: [309]その他 | KP1: [310]協定農用地の将来像を踏まえた集落の現状_該当事項の合計 | KQ1: [311]担い手が確保できており、耕作を継続 | KR1: [312]担い手が確保できているが、全ての委託希望は受けられない | KS1: [313]担い手が確保できていない | KT1: [314]耕作を継続したいが、耕作条件の悪い農地がある | KU1: [315]耕作を継続したいが、農業所得が低い | KV1: [316]耕作を継続したいが、法面や水路・農道等の管理が過重な負担となっている | KW1: [317]鳥獣被害が深刻であり、耕作意欲が減退している | KX1: [318]集落の自治（コミュニティ）機能が低下しており、生活に支障・不安が生じている | LB1: [319]その他 | LC1: [320]その他の内容 | LD1: [321]集落の現状を踏まえた対応の方向性_該当事項の合計 | LE1: [322]耕作放棄の懸念はなく、集落の課題もないことから、対策は不要 | LF1: [323]協定内で担い手を育成・確保 | LG1: [324]協定外で担い手を確保 | LH1: [325]基盤整備等により耕作条件を改善 | LI1: [326]農産物の高付加価値化により所得の向上を図る | LJ1: [327]新たな作物の導入により所得の向上を図る | LK1: [328]省力化技術の導入や外注化等により労働負担の軽減を図る | LL1: [329]耕作継続が困難な農用地の林地化 | LM1: [330]放牧利用による農用地の管理 | LN1: [331]鳥獣被害防止対策の実施 | LO1: [332]集落の自治（コミュニティ）機能の強化 | LP1: [333]その他 | LQ1: [334]その他の内容 | LR1: [335]具体的な対策に向けた検討_該当事項の合計 | LS1: [336]特に懸念はなく、協定参加者で実施していく | LT1: [337]協定参加者だけでは検討が困難であり外部（県・市町村含む）からの助力を得たい | LU1: [338]他の協定との広域化を考えたい | LV1: [339]中山間地域等直接支払交付金の加算措置を活用したい | LW1: [340]対策に活用可能な補助事業等を紹介して欲しい | LX1: [341]その他 | LY1: [342]その他の内容 | LZ1: [343]農業生産活動等の継続のための支援体制_該当事項の合計 | MA1: [344]農地所有適格法人が支援する | MB1: [345]JAが支援する | MC1: [346]集落営農組織が支援する | MD1: [347]農業者が支援する | ME1: [348]協定参加者で役割分担しつつ、農用地の維持管理を行う | MF1: [349]その他 | MG1: [350]その他の内容 | MH1: [351]備考欄 | MN1: [326]農産物の高付加価値化により所得の向上を図る
A2: =SUBTOTAL(2,A15:A3562) -> 0 | H2: =SUBTOTAL(3,H15:H15) -> 1 | I2: =SUBTOTAL(2,I15:I3551) -> 1 | J2: =SUBTOTAL(2,J15:J3551) -> 0 | K2: =SUBTOTAL(9,K15:K15) -> 0 | M2: 0 | N2: 0 | O2: 0 | P2: 0 | Q2: 0 | R2: 0 | S2: 0 | T2: 0 | U2: 0 | V2: 0 | W2: 0 | X2: 0 | Y2: 0 | Z2: 0 | AA2: 0 | AB2: 0 | AC2: 0 | AD2: 0 | AF2: =SUBTOTAL(9,AF15:AF3551) ->  | CL2: 0 | DQ2: 0 | DR2: 0 | DS2: 0 | DT2: 0 | DU2: 0 | DV2: 0 | DW2: =SUBTOTAL(3,DW15:DW3551) -> 0 | DX2: =SUBTOTAL(9,DX15:DX3551) -> 0 | DY2: 0 | DZ2: 0 | EA2: 0 | EB2: 0 | ED2: 0 | EI2: 0 | EP2: 0 | EV2: 0 | EW2: =SUBTOTAL(3,EW15:EW3551) -> 1 | EX2: 1 | EY2: 0 | EZ2: 1 | FA2: 1 | FB2: 0 | FC2: 1 | FD2: 1 | FE2: 0 | FF2: =SUBTOTAL(9,FF15:FF3551) ->  | FK2: 0 | FL2: 0 | FM2: 0 | FN2: 0 | FO2: 0 | FP2: 0 | FQ2: 0 | FR2: 0 | FS2: 0 | FT2: 0 | FU2: =SUBTOTAL(3,FU15:FU3551) -> 0 | FV2: =SUBTOTAL(9,FV15:FV3551) -> 0 | FW2: 0 | FX2: 0 | FY2: 0 | FZ2: 0 | GA2: 0 | GB2: 0 | GC2: 0 | GD2: 0 | GE2: 0 | GF2: 0 | GG2: =SUBTOTAL(3,GG15:GG3551) -> 0 | GH2: =SUBTOTAL(9,GH15:GH3551) ->  | GK2: 0 | GN2: 0 | GO2: 0 | GP2: 0 | GQ2: 0 | GR2: 0 | GS2: 0 | GT2: 0 | GU2: =SUBTOTAL(3,GU15:GU3551) -> 1 | GV2: =SUBTOTAL(3,GV15:GV3551) -> 1 | GW2: =SUBTOTAL(3,GW15:GW3551) -> 0 | GX2: =SUBTOTAL(9,GX15:GX3551) ->  | GY2: =SUBTOTAL(9,GY15:GY3551) ->  | GZ2: =SUBTOTAL(9,GZ15:GZ3551) ->  | HA2: =SUBTOTAL(9,HA15:HA3551) -> 0 | HB2: =SUBTOTAL(3,HB15:HB3551) -> 1 | HC2: =SUBTOTAL(3,HC15:HC3551) -> 1 | HD2: =SUBTOTAL(3,HD15:HD3551) -> 0 | HE2: =SUBTOTAL(9,HE15:HE3551) ->  | HF2: =SUBTOTAL(9,HF15:HF3551) ->  | HG2: =SUBTOTAL(9,HG15:HG3551) ->  | HH2: =SUBTOTAL(9,HH15:HH3551) -> 0 | HI2: =SUBTOTAL(3,HI15:HI3551) -> 1 | HJ2: =SUBTOTAL(3,HJ15:HJ3551) -> 1 | HK2: =SUBTOTAL(3,HK15:HK3551) -> 0 | HL2: =SUBTOTAL(9,HL15:HL3551) ->  | HM2: =SUBTOTAL(9,HM15:HM246551) ->  | HN2: =SUBTOTAL(9,HN15:HN246551) ->  | HO2: =SUBTOTAL(9,HO15:HO246551) -> 0 | HP2: =SUBTOTAL(9,HP15:HP246551) ->  | HQ2: =HP2/HN2 ->  | HR2: =SUBTOTAL(9,HR15:HR3551) ->  | HS2: 0 | HU2: 0 | II2: 0 | IJ2: 0 | IK2: 0 | IL2: =COUNTIF(IL15:IL3551,">0") -> 0 | IM2: =SUBTOTAL(9,IM15:IM3551) ->  | IW2: =COUNTIF(IW15:IW3551,">0") -> 0 | IX2: =SUBTOTAL(9,IX15:IX3551) ->  | IY2: =SUBTOTAL(9,IY15:IY3551) ->  | IZ2: =SUBTOTAL(9,IZ15:IZ3551) ->  | JA2: =COUNTIF(JA15:JA3551,">0") -> 0 | JB2: =SUBTOTAL(9,JB15:JB3551) ->  | JL2: =COUNTIF(JL15:JL3551,">0") -> 0 | JM2: =SUBTOTAL(9,JM15:JM3551) ->  | JN2: =SUBTOTAL(9,JN15:JN3551) ->  | JO2: =SUBTOTAL(9,JO15:JO3551) ->  | JP2: =SUBTOTAL(9,JP15:JP3551) ->  | JQ2: =SUBTOTAL(9,JQ15:JQ3551) ->  | JR2: =COUNTIF(JR15:JR3551,">0") -> 0 | JS2: =SUBTOTAL(9,JS15:JS3551) ->  | KC2: =SUBTOTAL(3,KC15:KC3551) -> 1 | KD2: =COUNTIF(KD15:KD3551,">0") -> 0 | KE2: =COUNTIF(KE15:KE3551,">0") -> 0 | KF2: =COUNTIF(KF15:KF3551,">0") -> 0 | KG2: =COUNTIF(KG15:KG3551,">0") -> 0 | KH2: =SUBTOTAL(9,KH15:KH3551) ->  | KR2: =SUBTOTAL(3,KR15:KR3551) -> 1 | KS2: =SUBTOTAL(9,KS15:KS3551) ->  | LB2: =SUBTOTAL(9,LB15:LB3551) ->  | LC2: =SUBTOTAL(3,LC15:LC3551) -> 1 | LD2: =SUBTOTAL(9,LD15:LD3551) ->  | LI2: 0 | LQ2: =SUBTOTAL(3,LQ15:LQ3551) -> 1 | LR2: =SUBTOTAL(9,LR15:LR3551) ->  | LY2: =SUBTOTAL(3,LY15:LY3551) -> 1 | LZ2: =SUBTOTAL(9,LZ15:LZ3551) ->  | MG2: =SUBTOTAL(3,MG15:MG3551) -> 1 | MH2: =SUBTOTAL(3,MH15:MH3551) -> 1 | MN2: =SUBTOTAL(9,MN15:MN3551) -> 0
A4: ①協定識別事項 | K4: ②協定参加者 | AE4: ③協定締結面積 | EK4: ④加算措置（加算面積、加算金額） | HL4: ⑤交付金額 | IL4: ⑥活動内容（全協定共通） | KD4: ⑦活動内容（体制整備単価） | OB4: 備考欄
A5: 協定識別コード | B5: 都道府県名 | C5: 市町村名 | D5: 地方公共団体コード | E5: 個別協定名 | G5: 協定識別コード重複確認セル | H5: 協定の所在地 | I5: 協定認定年度（交付開始年度） | J5: 複数の市町村にまたがる協定の事項 | K5: 協定参加者総計 | AE5: 地域区分 | AF5: 協定締結面積総計 | AG5: 通常・特認地域別、地目別及び交付基準別協定締結面積 | DP5: 本体交付金交付額（円） | DR5: 協定農用地の一部を除外した場合の理由、面積 | EC5: 協定締結面積［50］うち既荒廃農地の復旧面積 | EH5: 協定締結面積［50］うち自然災害を受けている農用地の復旧面積 | EJ5: 協定に含めない管理すべき荒廃農地の管理面積 | EK5: Ⅰ 棚田地域振興活動加算 | FF5: Ⅱ 超急傾斜農地保全管理加算 | GH5: Ⅲ ネットワーク化加算 | GX5: Ⅳ スマート農業加算 | HE5: Ⅴ 集落機能強化加算の経過措置 | HL5: 交付単価区分 | HN5: 交付金額（円） | HR5: 個人配分額（円） | HS5: 交付金の使途 | IL5: 農業生産活動等として取り組むべき事項 | JL5: 集落マスタープラン | KD5: 農業生産活動等の体制整備として取り組むべき事項
F6: 協定整理 番号 | M6: 農業者（人） | N6: 農業法人数 | O6: 農業生産組織数 | P6: 土地改良区 | Q6: 水利組合 | R6: 非農業者（人） | S6: その他 | T6: 協定参加者の年齢区分別計 | U6: 39歳以下 | V6: 40～44歳 | W6: 45～49歳 | X6: 50～54歳 | Y6: 55～59歳 | Z6: 60～64歳 | AA6: 65～69歳 | AB6: 70～74歳 | AC6: 75～79歳 | AD6: 80歳以上 | AG6: 通常地域+特認地域 | DQ6: うち国費（円） | DR6: 協定農用地の一部除外面積の合計 | DS6: 交付金の返還を伴うもの | DY6: 交付金の返還が免責されるもの | EQ6: （超急傾斜地棚田加算）（田1/10以上、畑20度以上） | HO6: うち国費 | HP6: 共同取組活動充当額（円） | HS6: 前年度末積立等残額（円） | HT6: 今年度交付額と前年度末積立等残高の計（円） | HU6: 個人配分支出総額（円） | HV6: 共同取組活動支出総額（円） | HW6: 役員報酬 | HX6: 研修会等費 | HY6: 道・水路管理費 | HZ6: 農地管理費 | IA6: 鳥獣被害防止対策費 | IB6: 共同利用機械購入等費 | IC6: 共同利用施設整備等費 | ID6: 多面的機能増進活動費 | IE6: 土地利用調整関係費 | IF6: 法人設立関係費 | IG6: 農産物等の販売促進関係費 | IH6: 都市住民との交流促進関係費 | II6: その他 | IJ6: 積立等計 | IL6: Ⅰ必須事項（農業生産活動等） | JA6: Ⅱ選択的必須事項（多面的機能を増進する活動） | JL6: 目指すべき将来像のチェック | JM6: 目指すべき将来像 | JR6: 活動方策のチェック | JS6: 将来像を実現するための活動方策 | KD6: ネットワーク化活動計画の作成状況 | KE6: 1-3.体制整備のために行おうとする取組 | KH6: 2.ネットワーク化の計画 | LQ6: 3.統合の計画 | MO6: 4.多様な組織の参画
L7: うち 中核的リーダー（人） | AG7: 田面積計 | AN7: 畑面積計 | AU7: 草地面積計 | BC7: 採草放牧地面積計 | BI7: 通常地域 | CL7: 特認地域 | EC7: 既荒廃農地の復旧面積計 | EH7: 自然災害を受けている農用地の復旧面積計 | EK7: 取組状況 （実施している場合：1） | EL7: 加算面積 | EO7: 加算金額（円） | EQ7: 取組状況 （実施している場合：1） | ER7: 加算面積 | EU7: 加算金額（円） | EW7: 棚田等の保全 | EZ7: 棚田等の保全を通じた多面にわたる機能の維持・発揮 | FC7: 棚田を核とした棚田地域の振興 | FF7: 取組状況 （実施している場合：1） | FG7: 加算面積計 | FJ7: 加算金額 | FL7: 超急傾斜農地の保全 | FV7: 超急傾斜農地で生産される農産物の販売促進等 | GH7: 取組状況 （実施している場合：1） | GI7: 加算面積計 | GJ7: 加算金額 | GL7: ネットワーク化する集落協定数 | GM7: 統合する集落協定数 | GN7: 人材確保者数 | GQ7: 確保された人材が担う地域活動 | GU7: ネットワーク化・統合等により実現する農業生産活動等の継続のための取組 | GX7: 取組状況 （実施している場合：1） | GY7: 加算面積計 | GZ7: 加算金額 | HB7: スマート農業による作業の省力化・効率化を図る取組 | HE7: 取組状況 （実施している場合：1） | HF7: 加算面積計 | HG7: 加算金額 | HI7: 新たな人材の確保に関する取組又は集落機能を強化する取組 | HL7: 体制整備単価 | HM7: 基礎 単価 | HQ7: 共同取組活動充当割合（％） | IK7: うち繰越 | IL7: １ 耕作放棄の防止等の活動 | IW7: 適正な道・水路等の管理活動（項目数） | IX7: ２ 水路、農道等の管理活動 | JA7: 適正な多面的機能の維持・増進活動（項目数） | JB7: ① 周辺林地の下草刈 | JC7: ② 棚田オーナー制度、市民農園等の開設・運営 | JD7: ③ 景観作物の作付け | JE7: ④土壌流亡に配慮した営農 | JF7: ⑤ 体験民宿（グリーン・ツーリズム） | JG7: ⑥ 魚類・昆虫類の保護 | JH7: ⑦ 鳥類の餌場の確保 | JI7: ⑧ 粗放的畜産 | JJ7: ⑨ 堆きゅう肥の施肥、拮抗作物の利用、合鴨・鯉の利用、輪作の徹底、緑肥作物の作付 | JK7: ⑩ その他活動 | JM7: ① 将来にわたり農業生産活動等が可能となる集落内の実施体制構築 | JN7: ② 協定の担い手となる新たな人材の育成・確保 | JO7: ③ 協定参加者それぞれが、作物生産、加工・直売等様々な工夫により再生可能な所得を確保 | JP7: ④ その他 | JS7: ① 機械・農作業の共同化等営農組織の育成 | JT7: ② 高付加価値型農業 | JU7: ③ 農業生産条件の強化 | JV7: ④ 担い手への農地集積 | JW7: ⑤ 担い手への農作業の委託 | JX7: ⑥ 新規就農者等による農業生産 | JY7: ⑦ 地場産農産物等の加工・販売 | JZ7: ⑧ 消費・出資の呼び込み | KA7: ⑨ 共同で支え合う集団的かつ持続的な体制整備 | KB7: ⑩ その他 | KD7: 「1」：集落協定においてネットワーク化活動計画を作成中 「2」：ネットワーク化活動計画を市町村に提出済み | KE7: ①ネットワーク化 | KF7: ②統合 | KG7: ③多様な組織の参画 | KH7: ネットワークの名称（予定） | KI7: ネットワーク化に参加する集落協定 | KK7: ネットワーク化で解決しようとする課題 | KS7: ネットワーク化により連携して実施する活動 | LD7: 連携方法 | LI7: 工程 | LJ7: ネットワーク化後の統合予定 | LQ7: 統合後の集落協定の名称（予定） | LR7: 統合に参加する集落協定 | LT7: 統合で解決しようとする課題 | MB7: 統合により体制を強化したい活動 | MN7: 工程 | MO7: 農業者団体以外の組織 | NJ7: 非農業者 | NM7: 多様な組織等の参画で解決しようとする課題 | NS7: 多様な組織等の参画により連携して実施する活動
AH8: 急傾斜 | AI8: 緩傾斜 | AJ8: 高齢化率・耕作放棄率 | AK8: 小区画不整形 | AL8: 特認基準 | AM8: 交付対象外 | AO8: 急傾斜 | AP8: 緩傾斜 | AQ8: 高齢化率・耕作放棄率 | AR8: 特認基準 | AS8: 交付対象外（田畑混在地） | AT8: 交付対象外（田畑混在地以外） | AV8: 急傾斜 | AW8: 緩傾斜 | AX8: 草地比率の高い草地 | AY8: 高齢化率・耕作放棄率 | AZ8: 特認基準 | BA8: 交付対象外（田草地混在地） | BB8: 交付対象外（田草地混在地以外） | BD8: 急傾斜 | BE8: 緩傾斜 | BF8: 特認基準 | BG8: 交付対象外（田採草放牧地混在） | BH8: 交付対象外（田採草放牧地混在以外） | BI8: 通常地域面積計 | BJ8: 田面積計（通常地域） | BK8: 通常地域 田 交付基準別 | BQ8: 畑面積計（通常地域） | BR8: 通常地域 畑 交付基準別 | BX8: 草地面積計（通常地域） | BY8: 通常地域 草地 交付基準別 | CF8: 採草放牧地面積計（通常地域） | CG8: 通常地域 採草放牧地 交付基準別 | CL8: 特認地域の基準区分 | CM8: 特認地域面積計 | CN8: 田面積計（特認地域） | CO8: 特認地域 田 交付基準別 | CU8: 畑面積計（特認地域） | CV8: 特認地域 畑 交付基準別 | DB8: 草地面積計（特認地域） | DC8: 特認地域 草地 交付基準別 | DJ8: 採草放牧地面積計（特認地域） | DK8: 特認地域 採草放牧地 交付基準別 | DS8: 耕作又は維持管理が行われなかった | DX8: 荒廃農地等の復旧が行われなかった | DY8: 農業者の死亡、病気、高齢等 | DZ8: 自然災害 | EA8: 土地収用法に基づく収容、使用 | EB8: 農業用施設用地等への転用 | ED8: うち復旧済面積 | EE8: 復旧面積（計画） | EI8: うち復旧済面積 | EM8: 地目別面積 | EP8: うち国費（円） | ES8: 地目別面積 | EV8: うち国費（円） | FH8: 地目別面積 | FK8: うち国費 | FL8: 法面の維持・補修 | FM8: 耕作道、ほ場進入路等の維持 | FN8: 作業足場の設置、ほ場進入路の改良等 | FO8: 土壌流入、土壌流出の防止 | FP8: 農薬散布等の施設の整備 | FQ8: 共同防除体制の構築 | FR8: 鳥獣害防止施設の維持 | FS8: 鳥獣害防止施設の設置 | FT8: その他 | FV8: 共通パッケージの作成 | FW8: パンフレットの作成 | FX8: 農産物の加工 | FY8: 直売所等での販売 | FZ8: ブランド化 | GA8: 景観作物の植栽 | GB8: 環境に配慮した農業 | GC8: 都市住民との交流 | GD8: 施設の設置・運営 | GE8: 棚田オーナー制度 | GF8: その他 | GK8: うち国費 | GO8: 集落内からの人材確保者数 | GP8: 集落外からの人材確保者数 | GR8: 集落協定組織の活動 | GS8: 農業生産組織の活動 | GT8: 加工・販売組織の活動 | HA8: うち国費 | HH8: うち国費 | IL8: 適正な耕作放棄の防止等の活動（項目数） | IM8: 多面的機能支払交付金と同一施設 | IN8: ① 賃借権設定・農作業の委託 | IO8: ② 既荒廃農用地の復旧・林地化・畜産的利用 | IP8: ③ 既荒廃農用地の保全管理 | IQ8: ④ 農地の法面管理 | IR8: ⑤ 柵、ネットの設置等鳥獣被害防止 | IS8: ⑥ 簡易な基盤整備 | IT8: ⑦ 担い手の確保 | IU8: ⑧ 地場農産物の加工・販売 | IV8: ⑨ その他（土地改良事業、災害復旧、地目変更等） | IX8: ① 水路の管理 | IY8: ② 農道の管理 | IZ8: ③ その他の施設の管理 | JQ8: その他の内容 | KC8: その他の内容 | KI8: ネットワーク化する協定数（自協定含む） | KJ8: 協定面積計（自協定含む） | KK8: ①リーダーの人材不足 | KL8: ②事務担当者の人材不足 | KM8: ③共同取組活動参加者の不足 | KN8: ④農業の担い手の人材不足 | KO8: ⑤農作業機械や施設の不足 | KP8: ⑥知見や技術の不足 | KQ8: ⑦その他 | KS8: ①事務の一元化（共同事務局の設置や 外部委託） | KT8: ②農地保全（草刈り、荒廃防止活動 等） | KU8: ③水路・農道等の維持管理 | KV8: ④機械・施設の共同利用 | KW8: ⑤農作業の共同化 | KX8: ⑥農業の担い手育成 | KY8: ⑦地場農産物の加工・販売 | KZ8: ⑧鳥獣害対策 | LA8: ⑨多面的機能を増進する活動 | LB8: ⑩その他 | LD8: ①協議会型 | LE8: ②活動連携型 | LF8: ③共同委託型 | LG8: ⑩その他 | LI8: ネットワーク化により連携して実施する活動の開始時期 | LJ8: ①第６期対策期間中（令和７年度～令和11 年度）での統合を検討する | LK8: ②第６期対策終了後の令和12 年度以降での統合を検討する | LL8: ③時期は未定だが将来的に統合を検討する | LM8: ④未定 | LN8: ⑤統合は必要ないと考えている | LO8: ⑥その他 | LR8: 統合する協定数（自協定含む） | LS8: 協定面積計（自協定含む） | LT8: ①リーダーの人材不足 | LU8: ②事務担当者の人材不足 | LV8: ③共同取組活動参加者の不足 | LW8: ④農業の担い手の人材不足 | LX8: ⑤農作業機械や施設の不足 | LY8: ⑥知見や技術の不足 | LZ8: ⑦その他 | MB8: ①リーダー等の人材確保 | MC8: ②事務局機能の強化 | MD8: ③農地保全（草刈り、荒廃防止活動 等） | ME8: ④水路・農道等の維持管理 | MF8: ⑤機械・施設の共同利用 | MG8: ⑥農作業の共同化 | MH8: ⑦農業の担い手育成 | MI8: ⑧地場農産物の加工・販売 | MJ8: ⑨鳥獣害対策 | MK8: ⑩多面的機能を増進する活動 | ML8: ⑪その他 | MN8: 統合の時期 | MO8: 参画組織数計 | MP8: 集落協定の構成員の組織 | MZ8: 別途協定等を締結 | NJ8: 非農業者数 | NM8: ①事務担当者の人材不足 | NN8: ②共同取組活動参加者の不足 | NO8: ③農業作業の人材不足 | NP8: ④知見や技術の不足 | NQ8: ⑥その他 | NS8: ①事務の適切な実施 | NT8: ②農地保全（草刈り、荒廃防止活動 等） | NU8: ③水路・農道等の維持管理 | NV8: ④農作業 | NW8: ⑤地場農産物の加工・販売 | NX8: ⑥鳥獣害対策 | NY8: ⑦多面的機能を増進する活動 | NZ8: ⑧その他
BK9: 急傾斜 | BL9: 緩傾斜 | BM9: 高齢化率・耕作放棄率 | BN9: 小区画不整形 | BO9: 特認基準 | BP9: 交付対象外 | BR9: 急傾斜 | BS9: 緩傾斜 | BT9: 高齢化率・耕作放棄率 | BU9: 特認基準 | BV9: 交付対象外(田畑混在地) | BW9: 交付対象外(田畑混在地以外) | BY9: 急傾斜 | BZ9: 緩傾斜 | CA9: 草地比率の高い草地 | CB9: 高齢化率・耕作放棄率 | CC9: 特認基準 | CD9: 交付対象外(田草地混在地) | CE9: 交付対象外(田草地混在地以外) | CG9: 急傾斜 | CH9: 緩傾斜 | CI9: 特認基準 | CJ9: 交付対象外（田採草放牧地混在） | CK9: 交付対象外（田採草放牧地混在以外） | CO9: 急傾斜 | CP9: 緩傾斜 | CQ9: 高齢化率・耕作放棄率 | CR9: 小区画不整形 | CS9: 特認基準 | CT9: 交付対象外 | CV9: 急傾斜 | CW9: 緩傾斜 | CX9: 高齢化率・耕作放棄率 | CY9: 特認基準 | CZ9: 交付対象外(田畑混在地) | DA9: 交付対象外(田畑混在地以外 | DC9: 急傾斜 | DD9: 緩傾斜 | DE9: 草地比率の高い草地 | DF9: 高齢化率・耕作放棄率 | DG9: 特認基準 | DH9: 交付対象外(田草地混在地) | DI9: 交付対象外(田草地混在地以外) | DK9: 急傾斜 | DL9: 緩傾斜 | DM9: 特認基準 | DN9: 交付対象外（田採草放牧地混在地） | DO9: 交付対象外（田採草放牧地混在地以外） | DT9: 耕作放棄によるもの | DU9: 転用によるもの | DV9: その他 | EE9: 田面積 | EF9: 畑面積 | EG9: 草地面積 | EM9: 田面積 | EN9: 畑面積 | ES9: 田面積 | ET9: 畑面積 | EW9: 目標 | EX9: 目標年度 | EY9: 達成状況 | EZ9: 目標 | FA9: 目標年度 | FB9: 達成状況 | FC9: 目標 | FD9: 目標年度 | FE9: 達成状況 | FH9: 田面積 | FI9: 畑面積 | FU9: その他の内容 | GG9: その他の内容 | GU9: 目標 | GV9: 目標年度 | GW9: 達成状況 | HB9: 目標 | HC9: 目標年度 | HD9: 達成状況 | HI9: 目標 | HJ9: 目標年度 | HK9: 達成状況 | KR9: その他の内容 | LC9: その他の内容 | LH9: その他の内容 | LP9: その他の内容 | MA9: その他の内容 | MM9: その他の内容 | MP9: 集落協定の構成員の組織数 | MQ9: 自治会・町内会 | MR9: 地域づくり協議会・地域運営組織 | MS9: 社会福祉協議会 | MT9: 企業 | MU9: NPO | MV9: 学校 （小学校、中学校、高校、大学） | MW9: 土地改良区 | MX9: 多面的機能支払活動組織 （保全会） | MY9: その他 | MZ9: 別途協定等を締結する組織数 | NA9: 自治会・町内会 | NB9: 地域づくり協議会・地域運営組織 | NC9: 社会福祉協議会 | ND9: 企業 | NE9: NPO | NF9: 学校 （小学校、中学校、高校、大学） | NG9: 土地改良区 | NH9: 多面的機能支払活動組織 （保全会） | NI9: その他 | NK9: 集落協定の構成員のうち非農業者 | NL9: 別途協定等を締結した組織の構成員のうち非農業者 | NR9: その他の内容 | OA9: その他の内容
DW10: その他の内容
A13: 1 | B13: =A13+1 -> 2 | C13: =B13+1 -> 3 | D13: =C13+1 -> 4 | E13: =D13+1 -> 5 | F13: =E13+1 -> 6 | H13: =F13+1 -> 7 | I13: =H13+1 -> 8 | J13: 9 | K13: 10 | L13: 11 | M13: 12 | N13: 13 | O13: 14 | P13: 15 | Q13: 16 | R13: 17 | S13: 18 | T13: 19 | U13: 20 | V13: 21 | W13: 22 | X13: 23 | Y13: 24 | Z13: 25 | AA13: 26 | AB13: 27 | AC13: 28 | AD13: 29 | AE13: 30 | AF13: 31 | AG13: 32 | AH13: 33 | AI13: 34 | AJ13: 35 | AK13: 36 | AL13: 37 | AM13: 38 | AN13: 39 | AO13: 40 | AP13: 41 | AQ13: 42 | AR13: 43 | AS13: 44 | AT13: 45 | AU13: 46 | AV13: 47 | AW13: 48 | AX13: 49 | AY13: 50 | AZ13: 51 | BA13: 52 | BB13: 53 | BC13: 54 | BD13: 55 | BE13: 56 | BF13: 57 | BG13: 58 | BH13: 59 | BI13: 60 | BJ13: 61 | BK13: 62 | BL13: 63 | BM13: 64 | BN13: 65 | BO13: 66 | BP13: 67 | BQ13: 68 | BR13: 69 | BS13: 70 | BT13: 71 | BU13: 72 | BV13: 73 | BW13: 74 | BX13: 75 | BY13: 76 | BZ13: 77 | CA13: 78 | CB13: 79 | CC13: 80 | CD13: 81 | CE13: 82 | CF13: 83 | CG13: 84 | CH13: 85 | CI13: 86 | CJ13: 87 | CK13: 88 | CL13: 89 | CM13: 90 | CN13: 91 | CO13: 92 | CP13: 93 | CQ13: 94 | CR13: 95 | CS13: 96 | CT13: 97 | CU13: 98 | CV13: 99 | CW13: 100 | CX13: 101 | CY13: 102 | CZ13: 103 | DA13: 104 | DB13: 105 | DC13: 106 | DD13: 107 | DE13: 108 | DF13: 109 | DG13: 110 | DH13: 111 | DI13: 112 | DJ13: 113 | DK13: 114 | DL13: 115 | DM13: 116 | DN13: 117 | DO13: 118 | DP13: 119 | DQ13: 120 | DR13: 121 | DS13: 122 | DT13: 123 | DU13: 124 | DV13: 125 | DW13: 126 | DX13: 127 | DY13: 128 | DZ13: 129 | EA13: 130 | EB13: 131 | EC13: 132 | ED13: 133 | EE13: 134 | EF13: 135 | EG13: 136 | EH13: 137 | EI13: 138 | EJ13: 139 | EK13: 140 | EL13: 141 | EM13: 142 | EN13: 143 | EO13: 144 | EP13: 145 | EQ13: 146 | ER13: 147 | ES13: 148 | ET13: 149 | EU13: 150 | EV13: 151 | EW13: 152 | EX13: 153 | EY13: 154 | EZ13: 155 | FA13: 156 | FB13: 157 | FC13: 158 | FD13: 159 | FE13: 160 | FF13: 161 | FG13: 162 | FH13: 163 | FI13: 164 | FJ13: 165 | FK13: 166 | FL13: 167 | FM13: 168 | FN13: 169 | FO13: 170 | FP13: 171 | FQ13: 172 | FR13: 173 | FS13: 174 | FT13: 175 | FU13: 176 | FV13: 177 | FW13: 178 | FX13: 179 | FY13: 180 | FZ13: 181 | GA13: 182 | GB13: 183 | GC13: 184 | GD13: 185 | GE13: 186 | GF13: 187 | GG13: 188 | GH13: 189 | GI13: 190 | GJ13: 191 | GK13: 192 | GL13: 193 | GM13: 194 | GN13: 195 | GO13: 196 | GP13: 197 | GQ13: 198 | GR13: 199 | GS13: 200 | GT13: 201 | GU13: 202 | GV13: 203 | GW13: 204 | GX13: 205 | GY13: 206 | GZ13: 207 | HA13: 208 | HB13: 209 | HC13: 210 | HD13: 211 | HE13: 212 | HF13: 213 | HG13: 214 | HH13: 215 | HI13: 216 | HJ13: 217 | HK13: 218 | HL13: 219 | HM13: 220 | HN13: 221 | HO13: 222 | HP13: 223 | HQ13: 224 | HR13: 225 | HS13: 226 | HT13: 227 | HU13: 228 | HV13: 229 | HW13: 230 | HX13: 231 | HY13: 232 | HZ13: 233 | IA13: 234 | IB13: 235 | IC13: 236 | ID13: 237 | IE13: 238 | IF13: 239 | IG13: 240 | IH13: 241 | II13: 242 | IJ13: 243 | IK13: 244 | IL13: 245 | IM13: 246 | IN13: 247 | IO13: 248 | IP13: 249 | IQ13: 250 | IR13: 251 | IS13: 252 | IT13: 253 | IU13: 254 | IV13: 255 | IW13: 256 | IX13: 257 | IY13: 258 | IZ13: 259 | JA13: 260 | JB13: 261 | JC13: 262 | JD13: 263 | JE13: 264 | JF13: 265 | JG13: 266 | JH13: 267 | JI13: 268 | JJ13: 269 | JK13: 270 | JL13: 271 | JM13: 272 | JN13: 273 | JO13: 274 | JP13: 275 | JQ13: 276 | JR13: 277 | JS13: 278 | JT13: 279 | JU13: 280 | JV13: 281 | JW13: 282 | JX13: 283 | JY13: 284 | JZ13: 285 | KA13: 286 | KB13: 287 | KC13: 288 | KD13: 289 | KE13: 290 | KF13: 291 | KG13: 292 | KH13: 293 | KI13: 294 | KJ13: 295 | KK13: 296 | KL13: 297 | KM13: 298 | KN13: 299 | KO13: 300 | KP13: 301 | KQ13: 302 | KR13: 303 | KS13: 304 | KT13: 305 | KU13: 306 | KV13: 307 | KW13: 308 | KX13: 309 | KY13: 310 | KZ13: 324 | LA13: 325 | LB13: =KX13+1 -> 310 | LC13: =LB13+1 -> 311 | LD13: 312 | LE13: 313 | LF13: 314 | LG13: 315 | LH13: 316 | LI13: 317 | LJ13: 318 | LK13: 319 | LL13: 320 | LM13: 321 | LN13: 322 | LO13: 323 | LP13: 324 | LQ13: 325 | LR13: 326 | LS13: 327 | LT13: 328 | LU13: 329 | LV13: 330 | LW13: 331 | LX13: 332 | LY13: 333 | LZ13: 334 | MA13: 335 | MB13: 336 | MC13: 337 | MD13: 338 | ME13: 339 | MF13: 340 | MG13: 341 | MH13: 342 | MI13: 343 | MJ13: 344 | MK13: 345 | ML13: 346 | MM13: 347 | MN13: 348 | MO13: 349 | MP13: 350 | MQ13: 351 | MR13: 352 | MS13: 353 | MT13: 354 | MU13: 355 | MV13: 356 | MW13: 357 | MX13: 358 | MY13: 359 | MZ13: 360 | NA13: 361 | NB13: 362 | NC13: 363 | ND13: 364 | NE13: 365 | NF13: 366 | NG13: 367 | NH13: 368 | NI13: 369 | NJ13: 370 | NK13: 371 | NL13: 372 | NM13: 373 | NN13: 374 | NO13: 375 | NP13: 376 | NQ13: 377 | NR13: 378 | NS13: 379 | NT13: 380 | NU13: 381 | NV13: 382 | NW13: 383 | NX13: 384 | NY13: 385 | NZ13: 386 | OA13: 387 | OB13: 388
A14: 整数 | B14: 自動入力 | C14: 自動入力 | D14: 自動入力 | E14: 自動入力 | F14: 自動入力 | G14: 自動入力 | H14: 文字 | I14: リスト | J14: 文字 | K14: 自動入力 | L14: 整数 | M14: 整数 | N14: 整数 | O14: 整数 | P14: 整数 | Q14: 整数 | R14: 整数 | S14: 整数 | T14: 自動入力 | U14: 整数 | V14: 整数 | W14: 整数 | X14: 整数 | Y14: 整数 | Z14: 整数 | AA14: 整数 | AB14: 整数 | AC14: 整数 | AD14: 整数 | AE14: 自動入力 | AF14: 自動入力 | AG14: 自動入力 | AH14: 自動入力 | AI14: 自動入力 | AJ14: 自動入力 | AK14: 自動入力 | AL14: 自動入力 | AM14: 自動入力 | AN14: 自動入力 | AO14: 自動入力 | AP14: 自動入力 | AQ14: 自動入力 | AR14: 自動入力 | AS14: 自動入力 | AT14: 自動入力 | AU14: 自動入力 | AV14: 自動入力 | AW14: 自動入力 | AX14: 自動入力 | AY14: 自動入力 | AZ14: 自動入力 | BA14: 自動入力 | BB14: 自動入力 | BC14: 自動入力 | BD14: 自動入力 | BE14: 自動入力 | BF14: 自動入力 | BG14: 自動入力 | BH14: 自動入力 | BI14: 自動入力 | BJ14: 自動入力 | BK14: 整数 | BL14: 整数 | BM14: 整数 | BN14: 整数 | BO14: 整数 | BP14: 整数 | BQ14: 自動入力 | BR14: 整数 | BS14: 整数 | BT14: 整数 | BU14: 整数 | BV14: 整数 | BW14: 整数 | BX14: 自動入力 | BY14: 整数 | BZ14: 整数 | CA14: 整数 | CB14: 整数 | CC14: 整数 | CD14: 整数 | CE14: 整数 | CF14: 自動入力 | CG14: 整数 | CH14: 整数 | CI14: 整数 | CJ14: 整数 | CK14: 整数 | CL14: リスト | CM14: 自動入力 | CN14: 自動入力 | CO14: 整数 | CP14: 整数 | CQ14: 整数 | CR14: 整数 | CS14: 整数 | CT14: 整数 | CU14: 自動入力 | CV14: 整数 | CW14: 整数 | CX14: 整数 | CY14: 整数 | CZ14: 整数 | DA14: 整数 | DB14: 自動入力 | DC14: 整数 | DD14: 整数 | DE14: 整数 | DF14: 整数 | DG14: 整数 | DH14: 整数 | DI14: 整数 | DJ14: 自動入力 | DK14: 整数 | DL14: 整数 | DM14: 整数 | DN14: 整数 | DO14: 整数 | DP14: 整数 | DQ14: 整数 | DR14: 自動入力 | DS14: 整数 | DT14: 整数 | DU14: 整数 | DV14: 整数 | DW14: 文字 | DX14: 整数 | DY14: 整数 | DZ14: 整数 | EA14: 整数 | EB14: 整数 | EC14: 自動入力 | ED14: 整数 | EE14: 整数 | EF14: 整数 | EG14: 整数 | EH14: 整数 | EI14: 整数 | EJ14: 整数 | EK14: 自動入力 | EL14: 自動入力 | EM14: 整数 | EN14: 整数 | EO14: 整数 | EP14: 整数 | EQ14: 自動入力 | ER14: 自動入力 | ES14: 整数 | ET14: 整数 | EU14: 整数 | EV14: 整数 | EW14: 文字 | EX14: リスト | EY14: リスト | EZ14: 文字 | FA14: リスト | FB14: リスト | FC14: 文字 | FD14: リスト | FE14: リスト | FF14: 自動入力 | FG14: 自動入力 | FH14: 整数 | FI14: 整数 | FJ14: 整数 | FK14: 整数 | FL14: リスト | FM14: リスト | FN14: リスト | FO14: リスト | FP14: リスト | FQ14: リスト | FR14: リスト | FS14: リスト | FT14: リスト | FU14: 文字 | FV14: リスト | FW14: リスト | FX14: リスト | FY14: リスト | FZ14: リスト | GA14: リスト | GB14: リスト | GC14: リスト | GD14: リスト | GE14: リスト | GF14: リスト | GG14: 文字 | GH14: 自動入力 | GI14: 整数 | GJ14: 整数 | GK14: 整数 | GL14: 整数 | GM14: 整数 | GN14: 自動入力 | GO14: 整数 | GP14: 整数 | GQ14: 自動入力 | GR14: リスト | GS14: リスト | GT14: リスト | GU14: 文字 | GV14: リスト | GW14: リスト | GX14: 自動入力 | GY14: 自動入力 | GZ14: 整数 | HA14: 整数 | HB14: 文字 | HC14: リスト | HD14: リスト | HE14: 自動入力 | HF14: 自動入力 | HG14: 整数 | HH14: 整数 | HI14: 文字 | HJ14: リスト | HK14: リスト | HL14: リスト | HM14: リスト | HN14: 自動入力 | HO14: 自動入力 | HP14: 自動入力 | HQ14: 自動入力 | HR14: 整数 | HS14: 整数 | HT14: 自動入力 | HU14: 整数 | HV14: 自動入力 | HW14: 整数 | HX14: 整数 | HY14: 整数 | HZ14: 整数 | IA14: 整数 | IB14: 整数 | IC14: 整数 | ID14: 整数 | IE14: 整数 | IF14: 整数 | IG14: 整数 | IH14: 整数 | II14: 整数 | IJ14: 整数 | IK14: 整数 | IL14: 自動入力 | IM14: リスト | IN14: リスト | IO14: リスト | IP14: リスト | IQ14: リスト | IR14: リスト | IS14: リスト | IT14: リスト | IU14: リスト | IV14: リスト | IW14: 自動入力 | IX14: リスト | IY14: リスト | IZ14: リスト | JA14: 自動入力 | JB14: リスト | JC14: リスト | JD14: リスト | JE14: リスト | JF14: リスト | JG14: リスト | JH14: リスト | JI14: リスト | JJ14: リスト | JK14: リスト | JL14: 自動入力 | JM14: リスト | JN14: リスト | JO14: リスト | JP14: リスト | JQ14: 文字 | JR14: 自動入力 | JS14: リスト | JT14: リスト | JU14: リスト | JV14: リスト | JW14: リスト | JX14: リスト | JY14: リスト | JZ14: リスト | KA14: リスト | KB14: リスト | KC14: 文字 | KD14: リスト | KE14: リスト | KF14: リスト | KG14: リスト | KH14: 文字 | KI14: 整数 | KJ14: 整数 | KK14: リスト | KL14: リスト | KM14: リスト | KN14: リスト | KO14: リスト | KP14: リスト | KQ14: リスト | KR14: 文字 | KS14: リスト | KT14: リスト | KU14: リスト | KV14: リスト | KW14: リスト | KX14: リスト | KY14: リスト | KZ14: リスト | LA14: リスト | LB14: リスト | LC14: 文字 | LD14: リスト | LE14: リスト | LF14: リスト | LG14: リスト | LH14: リスト | LI14: リスト | LJ14: リスト | LK14: リスト | LL14: リスト | LM14: リスト | LN14: リスト | LO14: リスト | LP14: リスト | LQ14: 文字 | LR14: 整数 | LS14: 整数 | LT14: リスト | LU14: リスト | LV14: リスト | LW14: リスト | LX14: リスト | LY14: リスト | LZ14: リスト | MA14: 文字 | MB14: リスト | MC14: リスト | MD14: リスト | ME14: リスト | MF14: リスト | MG14: リスト | MH14: リスト | MI14: リスト | MJ14: リスト | MK14: リスト | ML14: リスト | MM14: 文字 | MN14: リスト | MO14: 自動入力 | MP14: 自動入力 | MQ14: 整数 | MR14: 整数 | MS14: 整数 | MT14: 整数 | MU14: 整数 | MV14: 整数 | MW14: 整数 | MX14: 整数 | MY14: 整数 | MZ14: 自動入力 | NA14: 整数 | NB14: 整数 | NC14: 整数 | ND14: 整数 | NE14: 整数 | NF14: 整数 | NG14: 整数 | NH14: 整数 | NI14: 整数 | NJ14: 自動入力 | NK14: 整数 | NL14: 整数 | NM14: リスト | NN14: リスト | NO14: リスト | NP14: リスト | NQ14: リスト | NR14: 文字 | NS14: リスト | NT14: リスト | NU14: リスト | NV14: リスト | NW14: リスト | NX14: リスト | NY14: リスト | NZ14: リスト | OA14: 文字 | OB14: 文字
B15: =はじめに!D3 -> 島根県 | C15: =はじめに!D4 -> 出雲市 | E15: =はじめに!D5 -> あいうえお協定 | G15: =IFERROR(D15*10000+F15,"") -> 0 | H15: =はじめに!D7 -> ○○県△△市○町 | I15: ='別紙１①'!E38 -> 7 | K15: =M15+N15+O15+P15+Q15+R15+S15 -> 0 | L15: =#REF! ->  | M15: =COUNTIF('別紙１③'!H7:H34,"A")+COUNTIF('別紙１③'!H7:H34,"B") -> 0 | N15: =COUNTIF('別紙１③'!H7:H34,"C")+COUNTIF('別紙１③'!H7:H34,"D")+COUNTIF('別紙１③'!H7:H34,"E") -> 0 | O15: =COUNTIF('別紙１③'!H7:H34,"F")+COUNTIF('別紙１③'!H7:H34,"G")+COUNTIF('別紙１③'!H7:H34,"H")+COUNTIF('別紙１③'!H7:H34,"I") -> 0 | P15: =COUNTIF('別紙１③'!H7:H34,"J") -> 0 | Q15: =COUNTIF('別紙１③'!H7:H34,"K") -> 0 | R15: =COUNTIF('別紙１③'!H7:H34,"L") -> 0 | S15: =COUNTIF('別紙１③'!H7:H34,"M") -> 0 | T15: =U15+V15+W15+X15+Y15+Z15+AA15+AB15+AC15+AD15 -> 0 | U15: =COUNTIF('別紙１③'!I7:I34,"ア") -> 0 | V15: =COUNTIF('別紙１③'!I7:I34,"イ") -> 0 | W15: =COUNTIF('別紙１③'!I7:I34,"ウ") -> 0 | X15: =COUNTIF('別紙１③'!I7:I34,"エ") -> 0 | Y15: =COUNTIF('別紙１③'!I7:I34,"オ") -> 0 | Z15: =COUNTIF('別紙１③'!I7:I34,"カ") -> 0 | AA15: =COUNTIF('別紙１③'!I7:I34,"キ") -> 0 | AB15: =COUNTIF('別紙１③'!I7:I34,"ク") -> 0 | AC15: =COUNTIF('別紙１③'!I7:I34,"ケ") -> 0 | AD15: =COUNTIF('別紙１③'!I7:I34,"コ") -> 0 | AE15: =IF(CM15*BI15>0,"通特併存",IF(BI15<>0,"通常",IF(CM15<>0,"特認",IF(CM15*BI15=0,"")))) ->  | AF15: =AG15+AN15+AU15+BC15 ->  | AG15: =AH15+AI15+AJ15+AK15+AL15+AM15 ->  | AH15: =BK15+CO15 ->  | AN15: =AO15+AP15+AQ15+AR15+AS15+AT15 ->  | AO15: =BR15+CV15 ->  | AU15: =AV15+AW15+AX15+AY15+AZ15+BA15+BB15 ->  | AV15: =BY15+DC15 ->  | BC15: =BD15+BE15+BF15+BG15+BH15 ->  | BD15: =CG15+DK15 ->  | BE15: =CH15+DL15 ->  | BF15: =CI15+DM15 ->  | BG15: =CJ15+DN15 ->  | BH15: =CK15+DO15 ->  | BI15: =BJ15+BQ15+BX15+CF15 ->  | BJ15: =BK15+BL15+BM15+BN15+BO15+BP15 ->  | BK15: =SUMIFS(#REF!,#REF!,"通常地域（8法内）",#REF!,"田",#REF!,"急傾斜")+SUMIFS(#REF!,#REF!,"通常地域（8法以外で棚田法の交付対象農用地）",#REF!,"田",#REF!,"急傾斜") ->  | BL15: =SUMIFS(#REF!,#REF!,"通常地域（8法内）",#REF!,"田",#REF!,"緩傾斜")+SUMIFS(#REF!,#REF!,"通常地域（8法以外で棚田法の交付対象農用地）",#REF!,"田",#REF!,"緩傾斜") ->  | BM15: =SUMIFS(#REF!,#REF!,"通常地域（8法内）",#REF!,"田",#REF!,"高齢化・耕作放棄率")+SUMIFS(#REF!,#REF!,"通常地域（8法以外で棚田法の交付対象農用地）",#REF!,"田",#REF!,"高齢化・耕作放棄率") ->  | BN15: =SUMIFS(#REF!,#REF!,"通常地域（8法内）",#REF!,"田",#REF!,"小区画・不整形")+SUMIFS(#REF!,#REF!,"通常地域（8法以外で棚田法の交付対象農用地）",#REF!,"田",#REF!,"小区画・不整形") ->  | BO15: =SUMIFS(#REF!,#REF!,"通常地域（8法内）",#REF!,"田",#REF!,"特認基準")+SUMIFS(#REF!,#REF!,"通常地域（8法以外で棚田法の交付対象農用地）",#REF!,"田",#REF!,"特認基準") ->  | BP15: =SUMIFS(#REF!,#REF!,"通常地域（8法内）",#REF!,"田",#REF!,"交付対象外")+SUMIFS(#REF!,#REF!,"通常地域（8法以外で棚田法の交付対象農用地）",#REF!,"田",#REF!,"交付対象外") ->  | BQ15: =BR15+BS15+BT15+BU15+BV15+BW15 ->  | BR15: =SUMIFS(#REF!,#REF!,"通常地域（8法内）",#REF!,"畑",#REF!,"急傾斜")+SUMIFS(#REF!,#REF!,"通常地域（8法以外で棚田法の交付対象農用地）",#REF!,"畑",#REF!,"急傾斜") ->  | BS15: =SUMIFS(#REF!,#REF!,"通常地域（8法内）",#REF!,"畑",#REF!,"緩傾斜")+SUMIFS(#REF!,#REF!,"通常地域（8法以外で棚田法の交付対象農用地）",#REF!,"畑",#REF!,"緩傾斜") ->  | BT15: =SUMIFS(#REF!,#REF!,"通常地域（8法内）",#REF!,"畑",#REF!,"高齢化・耕作放棄率")+SUMIFS(#REF!,#REF!,"通常地域（8法以外で棚田法の交付対象農用地）",#REF!,"畑",#REF!,"高齢化・耕作放棄率") ->  | BU15: =SUMIFS(#REF!,#REF!,"通常地域（8法内）",#REF!,"畑",#REF!,"特認基準")+SUMIFS(#REF!,#REF!,"通常地域（8法以外で棚田法の交付対象農用地）",#REF!,"畑",#REF!,"特認基準") ->  | BV15: =SUMIFS(#REF!,#REF!,"通常地域（8法内）",#REF!,"畑",#REF!,"交付対象外（田畑混在地）")+SUMIFS(#REF!,#REF!,"通常地域（8法以外で棚田法の交付対象農用地）",#REF!,"畑",#REF!,"交付対象外（田畑混在地）") ->  | BW15: =SUMIFS(#REF!,#REF!,"通常地域（8法内）",#REF!,"畑",#REF!,"交付対象外（田畑混在地以外）")+SUMIFS(#REF!,#REF!,"通常地域（8法以外で棚田法の交付対象農用地）",#REF!,"畑",#REF!,"交付対象外（田畑混在地以外）") ->  | BX15: =BY15+BZ15+CA15+CB15+CC15+CD15+CE15 ->  | BY15: =SUMIFS(#REF!,#REF!,"通常地域（8法内）",#REF!,"草地",#REF!,"急傾斜")+SUMIFS(#REF!,#REF!,"通常地域（8法以外で棚田法の交付対象農用地）",#REF!,"草地",#REF!,"急傾斜") ->  | BZ15: =SUMIFS(#REF!,#REF!,"通常地域（8法内）",#REF!,"草地",#REF!,"緩傾斜")+SUMIFS(#REF!,#REF!,"通常地域（8法以外で棚田法の交付対象農用地）",#REF!,"草地",#REF!,"緩傾斜") ->  | CA15: =SUMIFS(#REF!,#REF!,"通常地域（8法内）",#REF!,"草地",#REF!,"草地比率の高い草地")+SUMIFS(#REF!,#REF!,"通常地域（8法以外で棚田法の交付対象農用地）",#REF!,"草地",#REF!,"草地比率の高い草地") ->  | CB15: =SUMIFS(#REF!,#REF!,"通常地域（8法内）",#REF!,"草地",#REF!,"高齢化・耕作放棄率")+SUMIFS(#REF!,#REF!,"通常地域（8法以外で棚田法の交付対象農用地）",#REF!,"草地",#REF!,"高齢化・耕作放棄率") ->  | CC15: =SUMIFS(#REF!,#REF!,"通常地域（8法内）",#REF!,"草地",#REF!,"特認基準")+SUMIFS(#REF!,#REF!,"通常地域（8法以外で棚田法の交付対象農用地）",#REF!,"草地",#REF!,"特認基準") ->  | CD15: =SUMIFS(#REF!,#REF!,"通常地域（8法内）",#REF!,"草地",#REF!,"交付対象外（田草地混在地）")+SUMIFS(#REF!,#REF!,"通常地域（8法以外で棚田法の交付対象農用地）",#REF!,"草地",#REF!,"交付対象外（田草地混在地）") ->  | CE15: =SUMIFS(#REF!,#REF!,"通常地域（8法内）",#REF!,"草地",#REF!,"交付対象外（田草地混在地以外）")+SUMIFS(#REF!,#REF!,"通常地域（8法以外で棚田法の交付対象農用地）",#REF!,"草地",#REF!,"交付対象外（田草地混在地以外）") ->  | CF15: =CG15+CH15+CI15+CJ15+CK15 ->  | CG15: =SUMIFS(#REF!,#REF!,"通常地域（8法内）",#REF!,"採草放牧地",#REF!,"急傾斜")+SUMIFS(#REF!,#REF!,"通常地域（8法以外で棚田法の交付対象農用地）",#REF!,"採草放牧地",#REF!,"急傾斜") ->  | CH15: =SUMIFS(#REF!,#REF!,"通常地域（8法内）",#REF!,"採草放牧地",#REF!,"緩傾斜")+SUMIFS(#REF!,#REF!,"通常地域（8法以外で棚田法の交付対象農用地）",#REF!,"採草放牧地",#REF!,"緩傾斜") ->  | CI15: =SUMIFS(#REF!,#REF!,"通常地域（8法内）",#REF!,"採草放牧地",#REF!,"特認基準")+SUMIFS(#REF!,#REF!,"通常地域（8法以外で棚田法の交付対象農用地）",#REF!,"採草放牧地",#REF!,"特認基準") ->  | CJ15: =SUMIFS(#REF!,#REF!,"通常地域（8法内）",#REF!,"採草放牧地",#REF!,"交付対象外（田採草放牧地混在地）")+SUMIFS(#REF!,#REF!,"通常地域（8法以外で棚田法の交付対象農用地）",#REF!,"採草放牧地",#REF!,"交付対象外（田採草放牧地混在地）") ->  | CK15: =SUMIFS(#REF!,#REF!,"通常地域（8法内）",#REF!,"採草放牧地",#REF!,"交付対象外（田採草放牧地混在地以外）")+SUMIFS(#REF!,#REF!,"通常地域（8法以外で棚田法の交付対象農用地）",#REF!,"採草放牧地",#REF!,"交付対象外（田採草放牧地混在地以外）") ->  | CM15: =CN15+CU15+DB15+DJ15 ->  | CN15: =CO15+CP15+CQ15+CR15+CS15+CT15 ->  | CO15: =SUMIFS(#REF!,#REF!,"特認地域",#REF!,"田",#REF!,"急傾斜") ->  | CP15: =SUMIFS(#REF!,#REF!,"特認地域",#REF!,"田",#REF!,"緩傾斜") ->  | CQ15: =SUMIFS(#REF!,#REF!,"特認地域",#REF!,"田",#REF!,"高齢化・耕作放棄率") ->  | CR15: =SUMIFS(#REF!,#REF!,"特認地域",#REF!,"田",#REF!,"小区画・不整形") ->  | CS15: =SUMIFS(#REF!,#REF!,"特認地域",#REF!,"田",#REF!,"特認基準") ->  | CT15: =SUMIFS(#REF!,#REF!,"特認地域",#REF!,"田",#REF!,"交付対象外") ->  | CU15: =CV15+CW15+CX15+CY15+CZ15+DA15 ->  | CV15: =SUMIFS(#REF!,#REF!,"特認地域",#REF!,"畑",#REF!,"急傾斜") ->  | CW15: =SUMIFS(#REF!,#REF!,"特認地域",#REF!,"畑",#REF!,"緩傾斜") ->  | CX15: =SUMIFS(#REF!,#REF!,"特認地域",#REF!,"畑",#REF!,"高齢化・耕作放棄率") ->  | CY15: =SUMIFS(#REF!,#REF!,"特認地域",#REF!,"畑",#REF!,"特認基準") ->  | CZ15: =SUMIFS(#REF!,#REF!,"特認地域",#REF!,"畑",#REF!,"交付対象外（田畑混在地）") ->  | DA15: =SUMIFS(#REF!,#REF!,"特認地域",#REF!,"畑",#REF!,"交付対象外（田畑混在地以外）") ->  | DB15: =DC15+DD15+DE15+DF15+DG15+DH15+DI15 ->  | DC15: =SUMIFS(#REF!,#REF!,"特認地域",#REF!,"草地",#REF!,"急傾斜") ->  | DD15: =SUMIFS(#REF!,#REF!,"特認地域",#REF!,"草地",#REF!,"緩傾斜") ->  | DE15: =SUMIFS(#REF!,#REF!,"特認地域",#REF!,"草地",#REF!,"草地比率の高い草地") ->  | DF15: =SUMIFS(#REF!,#REF!,"特認地域",#REF!,"草地",#REF!,"高齢化・耕作放棄率") ->  | DG15: =SUMIFS(#REF!,#REF!,"特認地域",#REF!,"草地",#REF!,"特認基準") ->  | DH15: =SUMIFS(#REF!,#REF!,"特認地域",#REF!,"草地",#REF!,"交付対象外（田草地混在地）") ->  | DI15: =SUMIFS(#REF!,#REF!,"特認地域",#REF!,"草地",#REF!,"交付対象外（田草地混在地以外）") ->  | DJ15: =DK15+DL15+DM15+DN15+DO15 ->  | DK15: =SUMIFS(#REF!,#REF!,"特認地域",#REF!,"採草放牧地",#REF!,"急傾斜") ->  | DL15: =SUMIFS(#REF!,#REF!,"特認地域",#REF!,"採草放牧地",#REF!,"緩傾斜") ->  | DM15: =SUMIFS(#REF!,#REF!,"特認地域",#REF!,"採草放牧地",#REF!,"特認基準") ->  | DN15: =SUMIFS(#REF!,#REF!,"特認地域",#REF!,"採草放牧地",#REF!,"交付対象外（田採草放牧地混在地）") ->  | DO15: =SUMIFS(#REF!,#REF!,"特認地域",#REF!,"採草放牧地",#REF!,"交付対象外（田採草放牧地混在地以外）") ->  | DP15: =#REF!+#REF!+#REF!+#REF! ->  | DR15: =DS15+DX15+DY15+DZ15+EA15+EB15 -> 0 | DS15: =DT15+DU15+DV15 -> 0 | EC15: =EE15+EF15+EG15 ->  | EE15: =SUMIFS(#REF!,#REF!,"荒廃農地",#REF!,"復旧",#REF!,"田") ->  | EF15: =SUMIFS(#REF!,#REF!,"荒廃農地",#REF!,"復旧",#REF!,"畑") ->  | EG15: =SUMIFS(#REF!,#REF!,"荒廃農地",#REF!,"復旧",#REF!,"草地") ->  | EH15: =SUMIFS(#REF!,#REF!,"被災地",#REF!,"復旧") ->  | EJ15: =SUMIFS(#REF!,#REF!,"協定に含めない管理すべき農用地") ->  | EK15: =IF(SUM(EM15:EN15)>0,1,0) ->  | EL15: =EM15+EN15 ->  | EM15: =#REF! ->  | EN15: =#REF! ->  | EO15: =#REF! ->  | EQ15: =IF(SUM(ES15:ET15)>0,1,0) ->  | ER15: =ES15+ET15 ->  | ES15: =#REF! ->  | ET15: =#REF! ->  | EU15: =#REF! ->  | EW15: =#REF! ->  | EX15: =#REF! ->  | EZ15: =#REF! ->  | FA15: =#REF! ->  | FC15: =#REF! ->  | FD15: =#REF! ->  | FF15: =IF(SUM(FH15:FI15)>0,1,0) ->  | FG15: =FH15+FI15 ->  | FH15: =#REF! ->  | FI15: =#REF! ->  | FJ15: =#REF! ->  | GH15: =IF(GI15>0,1,0) ->  | GI15: =#REF!+#REF!+#REF!+#REF!+#REF!+#REF!+#REF!+#REF! ->  | GJ15: =#REF! ->  | GL15: =COUNTIFS(#REF!,"<>") ->  | GM15: =COUNTIFS(#REF!,"<>") ->  | GN15: =GO15+GP15 -> 0 | GQ15: =SUM(GR15:GT15) -> 0 | GU15: =#REF! ->  | GV15: =#REF! ->  | GX15: =IF(GY15>0,1,0) ->  | GY15: =#REF!+#REF!+#REF!+#REF! ->  | GZ15: =#REF! ->  | HB15: =#REF! ->  | HC15: =#REF! ->  | HE15: =IF(HF15>0,1,0) ->  | HF15: =#REF!+#REF!+#REF!+#REF! ->  | HG15: =#REF! ->  | HI15: =#REF! ->  | HJ15: =#REF! ->  | HL15: =IF(#REF!="〇",1,"") ->  | HM15: =IF(#REF!="〇",1,"") ->  | HN15: =DP15+EO15+EU15+FJ15+GJ15+GZ15+HG15 ->  | HO15: =DQ15+EP15+EV15+FK15+GK15+HA15+HH15 -> 0 | HP15: =HN15-HR15 ->  | HQ15: =HP15/HN15 ->  | HR15: =#REF! ->  | HT15: =HN15+HS15 ->  | HV15: =HW15+HX15+HY15+HZ15+IA15+IB15+IC15+ID15+IE15+IF15+IG15+IH15+II15+IJ15 ->  | HW15: =#REF! ->  | HX15: =#REF! ->  | HY15: =#REF! ->  | HZ15: =#REF! ->  | IA15: =#REF! ->  | IB15: =#REF! ->  | IC15: =#REF! ->  | ID15: =#REF! ->  | IE15: =#REF! ->  | IF15: =#REF! ->  | IG15: =#REF! ->  | IH15: =#REF! ->  | IL15: =SUM(IN15:IV15) ->  | IM15: =IF(#REF!="✓",1,"") ->  | IN15: =IF(#REF!="〇",1,"") ->  | IO15: =IF(#REF!="〇",1,"") ->  | IP15: =IF(#REF!="〇",1,"") ->  | IQ15: =IF(#REF!="〇",1,"") ->  | IR15: =IF(#REF!="〇",1,"") ->  | IS15: =IF(#REF!="〇",1,"") ->  | IT15: =IF(#REF!="〇",1,"") ->  | IU15: =IF(#REF!="〇",1,"") ->  | IV15: =IF(#REF!="〇",1,"") ->  | IW15: =SUM(IX15:IZ15) ->  | IX15: =IF(OR(#REF!="〇",#REF!="〇",#REF!="〇"),1,"") ->  | IY15: =IF(OR(#REF!="〇",#REF!="〇",#REF!="〇"),1,"") ->  | IZ15: =IF(#REF!<>"",1,"") ->  | JA15: =SUM(JB15:JK15) ->  | JB15: =IF(#REF!="〇",1,"") ->  | JC15: =IF(#REF!="〇",1,"") ->  | JD15: =IF(#REF!="〇",1,"") ->  | JE15: =IF(#REF!="〇",1,"") ->  | JF15: =IF(#REF!="〇",1,"") ->  | JG15: =IF(#REF!="〇",1,"") ->  | JH15: =IF(#REF!="〇",1,"") ->  | JI15: =IF(#REF!="〇",1,"") ->  | JJ15: =IF(#REF!="〇",1,"") ->  | JK15: =IF(#REF!="〇",1,"") ->  | JL15: =SUM(JM15:JP15) ->  | JM15: =IF(#REF!="〇",1,"") ->  | JN15: =IF(#REF!="〇",1,"") ->  | JO15: =IF(#REF!="〇",1,"") ->  | JP15: =IF(#REF!="〇",1,"") ->  | JQ15: =#REF!&"" ->  | JR15: =SUM(JS15:KB15) ->  | JS15: =IF(#REF!="〇",1,"") ->  | JT15: =IF(#REF!="〇",1,"") ->  | JU15: =IF(#REF!="〇",1,"") ->  | JV15: =IF(#REF!="〇",1,"") ->  | JW15: =IF(#REF!="〇",1,"") ->  | JX15: =IF(#REF!="〇",1,"") ->  | JY15: =IF(#REF!="〇",1,"") ->  | JZ15: =IF(#REF!="〇",1,"") ->  | KA15: =IF(#REF!="〇",1,"") ->  | KB15: =IF(#REF!="〇",1,"") ->  | KC15: =#REF!&"" ->  | KE15: =IF(#REF!="○",1,"") ->  | KF15: =IF(#REF!="○",1,"") ->  | KG15: =IF(#REF!="○",1,"") ->  | KH15: =#REF!&"" ->  | KI15: =COUNTIFS(#REF!,"<>") ->  | KJ15: =#REF! ->  | KK15: =IF(#REF!="○",1,"") ->  | KL15: =IF(#REF!="○",1,"") ->  | KM15: =IF(#REF!="○",1,"") ->  | KN15: =IF(#REF!="○",1,"") ->  | KO15: =IF(#REF!="○",1,"") ->  | KP15: =IF(#REF!="○",1,"") ->  | KQ15: =IF(#REF!="○",1,"") ->  | KR15: =#REF!&"" ->  | KS15: =IF(#REF!="○",1,"") ->  | KT15: =IF(#REF!="○",1,"") ->  | KU15: =IF(#REF!="○",1,"") ->  | KV15: =IF(#REF!="○",1,"") ->  | KW15: =IF(#REF!="○",1,"") ->  | KX15: =IF(#REF!="○",1,"") ->  | KY15: =IF(#REF!="○",1,"") ->  | KZ15: =IF(#REF!="○",1,"") ->  | LA15: =IF(#REF!="○",1,"") ->  | LB15: =IF(#REF!="○",1,"") ->  | LC15: =#REF!&"" ->  | LD15: =IF(#REF!="○",1,"") ->  | LE15: =IF(#REF!="○",1,"") ->  | LF15: =IF(#REF!="○",1,"") ->  | LG15: =IF(#REF!="○",1,"") ->  | LH15: =#REF!&"" ->  | LJ15: =IF(#REF!="○",1,"") ->  | LK15: =IF(#REF!="○",1,"") ->  | LL15: =IF(#REF!="○",1,"") ->  | LM15: =IF(#REF!="○",1,"") ->  | LN15: =IF(#REF!="○",1,"") ->  | LO15: =IF(#REF!="○",1,"") ->  | LP15: =#REF!&"" ->  | LQ15: =#REF!&"" ->  | LR15: =COUNTIFS(#REF!,"<>") ->  | LS15: =#REF! ->  | LT15: =IF(#REF!="○",1,"") ->  | LU15: =IF(#REF!="○",1,"") ->  | LV15: =IF(#REF!="○",1,"") ->  | LW15: =IF(#REF!="○",1,"") ->  | LX15: =IF(#REF!="○",1,"") ->  | LY15: =IF(#REF!="○",1,"") ->  | LZ15: =IF(#REF!="○",1,"") ->  | MA15: =#REF!&"" ->  | MB15: =IF(#REF!="○",1,"") ->  | MC15: =IF(#REF!="○",1,"") ->  | MD15: =IF(#REF!="○",1,"") ->  | ME15: =IF(#REF!="○",1,"") ->  | MF15: =IF(#REF!="○",1,"") ->  | MG15: =IF(#REF!="○",1,"") ->  | MH15: =IF(#REF!="○",1,"") ->  | MI15: =IF(#REF!="○",1,"") ->  | MJ15: =IF(#REF!="○",1,"") ->  | MK15: =IF(#REF!="○",1,"") ->  | ML15: =IF(#REF!="○",1,"") ->  | MM15: =#REF!&"" ->  | MO15: =MP15+MZ15 -> 0 | MP15: =SUM(MQ15:MY15) -> 0 | MZ15: =SUM(NA15:NI15) -> 0 | NJ15: =NK15+NL15 ->  | NK15: =R15 -> 0 | NL15: =#REF! ->  | NM15: =IF(#REF!="○",1,"") ->  | NN15: =IF(#REF!="○",1,"") ->  | NO15: =IF(#REF!="○",1,"") ->  | NP15: =IF(#REF!="○",1,"") ->  | NQ15: =IF(#REF!="○",1,"") ->  | NR15: =#REF!&"" ->  | NS15: =IF(#REF!="○",1,"") ->  | NT15: =IF(#REF!="○",1,"") ->  | NU15: =IF(#REF!="○",1,"") ->  | NV15: =IF(#REF!="○",1,"") ->  | NW15: =IF(#REF!="○",1,"") ->  | NX15: =IF(#REF!="○",1,"") ->  | NY15: =IF(#REF!="○",1,"") ->  | NZ15: =IF(#REF!="○",1,"") ->  | OA15: =#REF!&"" -> 
